Workbook

Sheet SPLM vs f3 vs Power vs Vb
B3: Step 1: | C3: Pick the Driver Size and -3dB frequency that meet your needs from the plot below, enter the values below.
C5: Driver Size: | D5: 8
C6: f3: | D6: 30
B47: Once the Driver Size and f3 are chosen, the Maximum SPL and Recommended Miniumum Port Diameter are fixed as shown.
B49: SPLM: | C49: =-5.46+20*LOG10(($D$5^3/2+2*$D$5^2)*$D$6^2) -> 105.3114747 | D49: Maximum system SPL for chosen Driver Size and f3 [dB]
B50: DpR: | C50: =0.0256*SQRT(($D$5^3/2+2*$D$5^2)*$D$6) -> 2.747680331 | D50: Recommended minimum port diameter [in]
B51: SpR: | C51: =(0.0254)^2*PI()*(C50/2)^2 -> 0.003825513372 | D51: The recommended port area [m^2]
B54: Step 2: | C54: Choose the Box Volume based on the available Input Power and Driver Power Handling
E57: The recommended box volume and port length to realize SPLM and make everything fit are:
E59: VbR | F59: =1000*R136 -> 39.41812311 | G59: The minimum recommended box size to fit the recommended port
E60: LpR | F60: =2984*C51/(F59*0.001*D6^2)-0.824*SQRT(C51) -> 0.2708083596 | G60: The recommended port length [m]
B105: Step 3: | C105: Choose the box size you want. If to the left of the red line above, the box will require a shorter than recommended port with a smaller than recommended are to meet the tuning requirement. This will compromise the maximum SPL attainable.
B107: Vb | C107: =VbR -> 39.41812311 | D107: The user's choice for box volume (choose cell F59 for the default box volume) [L]
B108: Sp | C108: =C51 -> 0.003825513372 | D108: The user's choice for port area (choose cell C51 for the default port area) [m2]
B109: LPM | C109: =(0.001*C107)^(1/3)-2*SQRT(C108/PI()) -> 0.2705376763 | D109: The maximum port length likely to fit the box [m]
B110: LpRQ | C110: =2984*C108/(C107*0.001*D6^2)-0.824*SQRT(C108) -> 0.2708083596 | D110: The required port length (shown with red highlight if it won’t fit!) [m]
B111: Dp | C111: =78.7*SQRT(C108/PI()) -> 2.746279014 | D111: Port diameter [in]
B112: SPLmax | C112: =124.1+20*LOG10(C108*D6) -> 105.2962196 | D112: The calculated maximum SPL (shown with red highlight if less than SPLM!)
B113: Loss | C113: =C49-C112 -> 0.01525509541 | D113: The potential dB lost from too small of box/port combination
B116: Step 4: | C116: The system is now fully defined. Calculate the required driver parameters and check for reasonableness.
B118: Qms | C118: 3 | D118: User input for driver mechanical Q
B119: Re | C119: 6 | D119: User input for driver voice coil resistance
B120: Le | C120: 0 | D120: User input for driver voice coil inductance
B121: Qes | C121: =(Qms*0.4048)/(Qms-0.4048) -> 0.4679408138 | D121: The calculated driver electrical Q
B122: Kd | C122: =16.4*D5^4/C107 -> 1704.150139 | D122: Calculated driver stiffness
B123: Md | C123: =0.415*D5^4/(C107*D6^2) -> 0.04791479051 | D123: Calculated driver moving mass
B124: Dd | C124: =2.61*D5^4/(Qms*C107*D6) -> 3.013436222 | D124: Calculated driver damping
B125: Bl | C125: =SQRT(C119*SQRT(C122*C123)/C121) -> 10.7640207 | D125: Calculated driver Bl product
B126: Vas | C126: =Vb/942 -> 0.04184514131 | D126: Calculated driver equivalent volume
B127: Pe | C127: =7.76*10^-7*($D$5^3/2+2*$D$5^2)^2*$D$6/(C107/1000) -> 87.08622859 | D127: Input Power at Midband
B133: System f3 | C133: Nominal Driver Diameter [in] | M133: Power | N133: VBL | Q133: PR vs Port Line
C134: 4 | D134: 5.25 | E134: 6.5 | F134: 8 | G134: 10 | H134: 12 | I134: 15 | J134: 18 | M134: =7.76*10^-7*($D$5^3/2+2*$D$5^2)^2*$D$6/($N134/1000) -> 3432.77568 | N134: 1 | Q134: Dp | R134: =$C$50 -> 2.747680331
B135: 10 | C135: =-5.4+20*LOG10((C$134^3/2+2*C$134^2)*$B135^2) -> 70.72359948 | D135: =-5.4+20*LOG10((D$134^3/2+2*D$134^2)*$B135^2) -> 76.70860688 | E135: 81.51972033 | F135: 86.28662449 | G135: 91.5019608 | H135: 95.82904958 | I135: 101.1981225 | J135: 105.6387539 | M135: =7.76*10^-7*($D$5^3/2+2*$D$5^2)^2*$D$6/($N135/1000) -> 2726.750646 | N135: 1.258925412 | Q135: Sp | R135: =PI()/4*(0.0254*R134)^2 -> 0.003825513372
B136: 11 | C136: =-5.4+20*LOG10((C$134^3/2+2*C$134^2)*$B136^2) -> 72.37930689 | D136: 78.36431428 | E136: 83.17542774 | F136: 87.94233189 | G136: 93.15766821 | H136: 97.48475699 | I136: 102.8538299 | J136: 107.2944613 | M136: =7.76*10^-7*($D$5^3/2+2*$D$5^2)^2*$D$6/($N136/1000) -> 2165.935027 | N136: 1.584893192 | Q136: Vb | R136: 0.03941812311
B137: 12 | C137: 73.89084932 | D137: 79.87585672 | E137: 84.68697018 | F137: 89.45387433 | G137: 94.66921064 | H137: 98.99629942 | I137: 104.3653723 | J137: 108.8060037 | M137: 1720.463347 | N137: 1.995262315
B138: 13 | C138: 75.28133357 | D138: 81.26634097 | E138: 86.07745443 | F138: 90.84435858 | G138: 96.05969489 | H138: 100.3867837 | I138: 105.7558566 | J138: 110.196488 | M138: 1366.612613 | N138: 2.511886432 | Q138: Eq 1 | R138: =R136^(4/3)-0.3*R136*SQRT(R135) -> 0.01268370887
B139: 14 | C139: 76.56872091 | D139: 82.5537283 | E139: 87.36484176 | F139: 92.13174591 | G139: 97.34708223 | H139: 101.674171 | I139: 107.0432439 | J139: 111.4838753 | M139: 1085.538985 | N139: 3.16227766 | Q139: Eq 2 | R139: =2984*R135/D6^2 -> 0.01268370211
B140: 15 | C140: 77.76724984 | D140: 83.75225724 | E140: 88.5633707 | F140: 93.33027485 | G140: 98.54561116 | H140: 102.8726999 | I140: 108.2417728 | J140: 112.6824043 | M140: 862.2742653 | N140: 3.981071706 | Q140: Diff | R140: =R138-R139 -> 6.758541579e-09
B141: 16 | C141: 78.88839879 | D141: 84.87340618 | E141: 89.68451964 | F141: 94.45142379 | G141: 99.66676011 | H141: 103.9938489 | I141: 109.3629218 | J141: 113.8035532 | M141: 684.928795 | N141: 5.011872336
B142: 17 | C142: 79.94155633 | D142: 85.92656373 | E142: 90.73767719 | F142: 95.50458134 | G142: 100.7199177 | H142: 105.0470064 | I142: 110.4160793 | J142: 114.8567108 | M142: 544.0582806 | N142: 6.309573445
B143: 18 | C143: 80.93449968 | D143: 86.91950708 | E143: 91.73062054 | F143: 96.49752469 | G143: 101.712861 | H143: 106.0399498 | I143: 111.4090227 | J143: 115.8496541 | M143: 432.1608537 | N143: 7.943282347 | Q143: Port-PR Line
B144: 19 | C144: 81.87374352 | D144: 87.85875092 | E144: 92.66986437 | F144: 97.43676853 | G144: 102.6521048 | H144: 106.9791936 | I144: 112.3482665 | J144: 116.7888979 | M144: 343.277568 | N144: 10 | Q144: =M134 -> 3432.77568 | R144: =1000*R136 -> 39.41812311
B145: 20 | C145: 82.76479931 | D145: 88.7498067 | E145: 93.56092016 | F145: 98.32782431 | G145: 103.5431606 | H145: 107.8702494 | I145: 113.2393223 | J145: 117.6799537 | M145: 272.6750646 | N145: 12.58925412 | Q145: =M157 -> 17.1638784 | R145: =1000*R136 -> 39.41812311
B146: 21 | C146: 83.61237127 | D146: 89.59737867 | E146: 94.40849212 | F146: 99.17539628 | G146: 104.3907326 | H146: 108.7178214 | I146: 114.0868943 | J146: 118.5275257 | M146: 216.5935027 | N146: 15.84893192
B147: 22 | C147: 84.42050671 | D147: 90.40551411 | E147: 95.21662757 | F147: 99.98353172 | G147: 105.198868 | H147: 109.5259568 | I147: 114.8950297 | J147: 119.3356611 | M147: 172.0463347 | N147: 19.95262315
B148: 23 | C148: 85.19271292 | D148: 91.17772032 | E148: 95.98883377 | F148: 100.7557379 | G148: 105.9710742 | H148: 110.298163 | I148: 115.6672359 | J148: 120.1078673 | M148: 136.6612613 | N148: 25.11886432
B149: 24 | C149: 85.93204915 | D149: 91.91705655 | E149: 96.72817 | F149: 101.4950742 | G149: 106.7104105 | H149: 111.0374993 | I149: 116.4065721 | J149: 120.8472036 | M149: 108.5538985 | N149: 31.6227766
B150: 25 | C150: 86.64119983 | D150: 92.62620722 | E150: 97.43732068 | F150: 102.2042248 | G150: 107.4195611 | H150: 111.7466499 | I150: 117.1157228 | J150: 121.5563543 | M150: 86.22742653 | N150: 39.81071706
B151: 26 | C151: 87.3225334 | D151: 93.3075408 | E151: 98.11865425 | F151: 102.8855584 | G151: 108.1008947 | H151: 112.4279835 | I151: 117.7970564 | J151: 122.2376878 | M151: 68.4928795 | N151: 50.11872336
B152: 27 | C152: 87.97815005 | D152: 93.96315744 | E152: 98.7742709 | F152: 103.5411751 | G152: 108.7565114 | H152: 113.0836001 | I152: 118.452673 | J152: 122.8933045 | M152: 54.40582806 | N152: 63.09573445
B153: 28 | C153: 88.60992073 | D153: 94.59492813 | E153: 99.40604159 | F153: 104.1729457 | G153: 109.3882821 | H153: 113.7153708 | I153: 119.0844437 | J153: 123.5250752 | M153: 43.21608537 | N153: 79.43282347
B154: 29 | C154: 89.2195194 | D154: 95.20452679 | E154: 100.0156402 | F154: 104.7825444 | G154: 109.9978807 | H154: 114.3249695 | I154: 119.6940424 | J154: 124.1346738 | M154: 34.3277568 | N154: 100
B155: 30 | C155: 89.80844967 | D155: 95.79345707 | E155: 100.6045705 | F155: 105.3714747 | G155: 110.586811 | H155: 114.9138998 | I155: 120.2829727 | J155: 124.7236041 | M155: 27.24425143 | N155: 126
B156: 31 | C156: 90.37806723 | D156: 96.36307463 | E156: 101.1741881 | F156: 105.9410922 | G156: 111.1564286 | H156: 115.4835173 | I156: 120.8525902 | J156: 125.2932217 | M156: 21.72642835 | N156: 158
B157: 32 | C157: 90.92959861 | D157: 96.91460601 | E157: 101.7257195 | F157: 106.4926236 | G157: 111.7079599 | H157: 116.0350487 | I157: 121.4041216 | J157: 125.844753 | M157: 17.1638784 | N157: 200
B158: 33 | C158: 91.46415707 | D158: 97.44916447 | E158: 102.2602779 | F158: 107.0271821 | G158: 112.2425184 | H158: 116.5696072 | I158: 121.9386801 | J158: 126.3793115
B159: 34 | C159: 91.98275616 | D159: 97.96776356 | E159: 102.778877 | F159: 107.5457812 | G159: 112.7611175 | H159: 117.0882063 | I159: 122.4572791 | J159: 126.8979106
B160: 35 | C160: 92.48632125 | D160: 98.47132865 | E160: 103.2824421 | F160: 108.0493463 | G160: 113.2646826 | H160: 117.5917714 | I160: 122.9608442 | J160: 127.4014757
B161: 36 | C161: 92.97569951 | D161: 98.96070691 | E161: 103.7718204 | F161: 108.5387245 | G161: 113.7540608 | H161: 118.0811496 | I161: 123.4502225 | J161: 127.8908539
B162: 37 | C162: 93.45166844 | D162: 99.43667584 | E162: 104.2477893 | F162: 109.0146935 | G162: 114.2300298 | H162: 118.5571185 | I162: 123.9261914 | J162: 128.3668229
B163: 38 | C163: 93.91494334 | D163: 99.89995074 | E163: 104.7110642 | F163: 109.4779684 | G163: 114.6933047 | H163: 119.0203934 | I163: 124.3894663 | J163: 128.8300978
B164: 39 | C164: 94.36618376 | D164: 100.3511912 | E164: 105.1623046 | F164: 109.9292088 | G164: 115.1445451 | H164: 119.4716339 | I164: 124.8407067 | J164: 129.2813382
B165: 40 | C165: 94.80599913 | D165: 100.7910065 | E165: 105.60212 | F165: 110.3690241 | G165: 115.5843605 | H165: 119.9114492 | I165: 125.2805221 | J165: 129.7211536
B166: 41 | C166: 95.23495375 | D166: 101.2199611 | E166: 106.0310746 | F166: 110.7979788 | G166: 116.0133151 | H166: 120.3404039 | I166: 125.7094767 | J166: 130.1501082
B167: 42 | C167: 95.6535711 | D167: 101.6385785 | E167: 106.4496919 | F167: 111.2165961 | G167: 116.4319324 | H167: 120.7590212 | I167: 126.1280941 | J167: 130.5687255
B168: 43 | C168: =-5.4+20*LOG10((C$134^3/2+2*C$134^2)*$B168^2) -> 96.0623377 | D168: 102.0473451 | E168: 106.8584586 | F168: 111.6253627 | G168: 116.840699 | H168: 121.1677878 | I168: 126.5368607 | J168: 130.9774921
B169: 44 | C169: 96.46170654 | D169: 102.4467139 | E169: 107.2578274 | F169: 112.0247315 | G169: 117.2400679 | H169: 121.5671566 | I169: 126.9362295 | J169: 131.376861
B170: 45 | C170: 96.85210003 | D170: 102.8371074 | E170: 107.6482209 | F170: 112.415125 | G170: 117.6304614 | H170: 121.9575501 | I170: 127.326623 | J170: 131.7672545
B171: 46 | C171: 97.23391275 | D171: 103.2189201 | E171: 108.0300336 | F171: 112.7969378 | G171: 118.0122741 | H171: 122.3393628 | I171: 127.7084357 | J171: 132.1490672
B172: 47 | C172: 97.6075138 | D172: 103.5925212 | E172: 108.4036347 | F172: 113.1705388 | G172: 118.3858751 | H172: 122.7129639 | I172: 128.0820368 | J172: 132.5226682
B173: 48 | C173: 97.97324897 | D173: 103.9582564 | E173: 108.7693698 | F173: 113.536274 | G173: 118.7516103 | H173: 123.0786991 | I173: 128.447772 | J173: 132.8884034
B174: 49 | C174: 98.33144268 | D174: 104.3164501 | E174: 109.1275635 | F174: 113.8944677 | G174: 119.109804 | H174: 123.4368928 | I174: 128.8059657 | J174: 133.2465971
B175: 50 | C175: 98.68239965 | D175: 104.6674071 | E175: 109.4785205 | F175: 114.2454247 | G175: 119.460761 | H175: 123.7878498 | I175: 129.1569226 | J175: 133.5975541
B176: 51 | C176: 99.02640652 | D176: 105.0114139 | E176: 109.8225274 | F176: 114.5894315 | G176: 119.8047678 | H176: 124.1318566 | I176: 129.5009295 | J176: 133.941561
B177: 52 | C177: 99.36373323 | D177: 105.3487406 | E177: 110.1598541 | F177: 114.9267582 | G177: 120.1420945 | H177: 124.4691833 | I177: 129.8382562 | J177: 134.2788877
B178: 53 | C178: 99.69463426 | D178: 105.6796417 | E178: 110.4907551 | F178: 115.2576593 | G178: 120.4729956 | H178: 124.8000844 | I178: 130.1691573 | J178: 134.6097887
B179: 54 | C179: 100.0193499 | D179: 106.0043573 | E179: 110.8154707 | F179: 115.5823749 | G179: 120.7977112 | H179: 125.1248 | I179: 130.4938729 | J179: 134.9345043
B180: 55 | C180: 100.3381071 | D180: 106.3231145 | E180: 111.1342279 | F180: 115.9011321 | G180: 121.1164684 | H180: 125.4435572 | I180: 130.81263 | J180: 135.2532615
B181: 56 | C181: 100.6511206 | D181: 106.636128 | E181: 111.4472414 | F181: 116.2141456 | G181: 121.4294819 | H181: 125.7565707 | I181: 131.1256435 | J181: 135.566275
B182: 57 | C182: 100.9585937 | D182: 106.9436011 | E182: 111.7547146 | F182: 116.5216187 | G182: 121.736955 | H182: 126.0640438 | I182: 131.4331167 | J182: 135.8737481
B183: 58 | C183: 101.2607192 | D183: 107.2457266 | E183: 112.0568401 | F183: 116.8237442 | G183: 122.0390805 | H183: 126.3661693 | I183: 131.7352422 | J183: 136.1758736
B184: 59 | C184: 101.5576799 | D184: 107.5426873 | E184: 112.3538008 | F184: 117.120705 | G184: 122.3360413 | H184: 126.66313 | I184: 132.0322029 | J184: 136.4728344
B185: 60 | C185: 101.8496495 | D185: 107.8346569 | E185: 112.6457703 | F185: 117.4126745 | G185: 122.6280108 | H185: 126.9550996 | I185: 132.3241725 | J185: 136.7648039
B186: 61 | C186: 102.1367929 | D186: 108.1218003 | E186: 112.9329137 | F186: 117.6998179 | G186: 122.9151542 | H186: 127.242243 | I186: 132.6113159 | J186: 137.0519473
B187: 62 | C187: 102.4192671 | D187: 108.4042745 | E187: 113.2153879 | F187: 117.9822921 | G187: 123.1976284 | H187: 127.5247172 | I187: 132.89379 | J187: 137.3344215
B188: 63 | C188: 102.6972215 | D188: 108.6822289 | E188: 113.4933423 | F188: 118.2602465 | G188: 123.4755828 | H188: 127.8026716 | I188: 133.1717444 | J188: 137.6123759
B189: 64 | C189: 102.9707984 | D189: 108.9558058 | E189: 113.7669193 | F189: 118.5338234 | G189: 123.7491598 | H189: 128.0762485 | I189: 133.4453214 | J189: 137.8859529
B190: 65 | C190: 103.2401337 | D190: 109.2251411 | E190: 114.0362546 | F190: 118.8031588 | G190: 124.0184951 | H190: 128.3455838 | I190: 133.7146567 | J190: 138.1552882
B191: 66 | C191: 103.5053569 | D191: 109.4903643 | E191: 114.3014778 | F191: 119.0683819 | G191: 124.2837182 | H191: 128.610807 | I191: 133.9798799 | J191: 138.4205113
B192: 67 | C192: 103.7665916 | D192: 109.751599 | E192: 114.5627124 | F192: 119.3296166 | G192: 124.5449529 | H192: 128.8720417 | I192: 134.2411146 | J192: 138.681746
B193: 68 | C193: 104.023956 | D193: 110.0089634 | E193: 114.8200768 | F193: 119.586981 | G193: 124.8023173 | H193: 129.1294061 | I193: 134.498479 | J193: 138.9391104
B194: 69 | C194: 104.2775631 | D194: 110.2625705 | E194: 115.073684 | F194: 119.8405881 | G194: 125.0559244 | H194: 129.3830132 | I194: 134.7520861 | J194: 139.1927175
B195: 70 | C195: 104.5275211 | D195: 110.5125285 | E195: 115.3236419 | F195: 120.0905461 | G195: 125.3058824 | H195: 129.6329712 | I195: 135.0020441 | J195: 139.4426755
B196: 71 | C196: 104.7739334 | D196: 110.7589408 | E196: 115.5700543 | F196: 120.3369584 | G196: 125.5522947 | H196: 129.8793835 | I196: 135.2484564 | J196: 139.6890879
B197: 72 | C197: 105.0168993 | D197: 111.0019067 | E197: 115.8130202 | F197: 120.5799243 | G197: 125.7952607 | H197: 130.1223494 | I197: 135.4914223 | J197: 139.9320538
B198: 73 | C198: 105.2565139 | D198: 111.2415213 | E198: 116.0526347 | F198: 120.8195389 | G198: 126.0348752 | H198: 130.361964 | I198: 135.7310369 | J198: 140.1716683
B199: 74 | C199: 105.4928683 | D199: 111.4778757 | E199: 116.2889891 | F199: 121.0558933 | G199: 126.2712296 | H199: 130.5983184 | I199: 135.9673913 | J199: =-5.4+20*LOG10((J$134^3/2+2*J$134^2)*$B199^2) -> 140.4080227
B200: 75 | C200: =-5.4+20*LOG10((C$134^3/2+2*C$134^2)*$B200^2) -> 105.72605 | D200: 111.7110574 | E200: 116.5221709 | F200: 121.289075 | G200: 126.5044113 | H200: 130.8315001 | I200: 136.200573 | J200: 140.6412044
B201: 76 | C201: 105.9561432 | D201: 111.9411506 | E201: 116.752264 | F201: 121.5191682 | G201: 126.7345045 | H201: 131.0615933 | I201: 136.4306662 | J201: 140.8712976
B202: 77 | C202: 106.1832285 | D202: 112.1682359 | E202: 116.9793493 | F202: 121.7462535 | G202: 126.9615898 | H202: 131.2886786 | I202: 136.6577515 | J202: 141.0983829
B203: 78 | C203: 106.4073836 | D203: 112.392391 | E203: 117.2035044 | F203: 121.9704086 | G203: 127.1857449 | H203: 131.5128337 | I203: 136.8819066 | J203: 141.322538
B204: 79 | C204: 106.6286831 | D204: 112.6136905 | E204: 117.424804 | F204: 122.1917081 | G204: 127.4070445 | H204: 131.7341332 | I204: 137.1032061 | J204: 141.5438376
B205: 80 | C205: 106.847199 | D205: 112.8322064 | E205: 117.6433198 | F205: 122.410224 | G205: 127.6255603 | H205: 131.9526491 | I205: 137.3217219 | J205: 141.7623534
B206: 81 | C206: 107.0630002 | D206: 113.0480076 | E206: 117.8591211 | F206: 122.6260252 | G206: 127.8413616 | H206: 132.1684503 | I206: 137.5375232 | J206: 141.9781547
B207: 82 | C207: 107.2761536 | D207: 113.261161 | E207: 118.0722744 | F207: 122.8391786 | G207: 128.0545149 | H207: 132.3816037 | I207: 137.7506766 | J207: 142.191308
B208: 83 | C208: 107.4867232 | D208: 113.4717306 | E208: 118.282844 | F208: 123.0497482 | G208: 128.2650845 | H208: 132.5921733 | I208: 137.9612462 | J208: 142.4018776
B209: 84 | C209: 107.6947709 | D209: 113.6797783 | E209: 118.4908918 | F209: 123.2577959 | G209: 128.4731322 | H209: 132.800221 | I209: 138.1692939 | J209: 142.6099253
B210: 85 | C210: 107.9003565 | D210: 113.8853639 | E210: 118.6964774 | F210: 123.4633815 | G210: 128.6787178 | H210: 133.0058066 | I210: 138.3748795 | J210: 142.8155109
B211: 86 | C211: 108.1035375 | D211: 114.0885449 | E211: 118.8996584 | F211: 123.6665625 | G211: 128.8818989 | H211: 133.2089876 | I211: 138.5780605 | J211: 143.018692
B212: 87 | C212: 108.3043696 | D212: 114.289377 | E212: 119.1004904 | F212: 123.8673946 | G212: 129.0827309 | H212: 133.4098197 | I212: 138.7788926 | J212: 143.219524
B213: 88 | C213: 108.5029064 | D213: 114.4879138 | E213: 119.2990272 | F213: 124.0659314 | G213: 129.2812677 | H213: 133.6083565 | I213: 138.9774294 | J213: 143.4180608
B214: 89 | C214: 108.6991997 | D214: 114.6842071 | E214: 119.4953206 | F214: 124.2622248 | G214: 129.4775611 | H214: 133.8046498 | I214: 139.1737227 | J214: 143.6143542
B215: 90 | C215: 108.8932999 | D215: 114.8783073 | E215: 119.6894207 | F215: 124.4563249 | G215: 129.6716612 | H215: 133.99875 | I215: 139.3678228 | J215: 143.8084543
B216: 91 | C216: 109.0852552 | D216: 115.0702626 | E216: 119.881376 | F216: 124.6482802 | G216: 129.8636165 | H216: 134.1907053 | I216: 139.5597782 | J216: 144.0004096
B217: 92 | C217: 109.2751126 | D217: 115.26012 | E217: 120.0712334 | F217: 124.8381376 | G217: 130.0534739 | H217: 134.3805627 | I217: 139.7496356 | J217: 144.190267
B218: 93 | C218: 109.4629174 | D218: 115.4479248 | E218: 120.2590383 | F218: 125.0259424 | G218: 130.2412787 | H218: 134.5683675 | I218: 139.9374404 | J218: 144.3780718
B219: 94 | C219: 109.6487136 | D219: 115.633721 | E219: 120.4448345 | F219: 125.2117386 | G219: 130.4270749 | H219: 134.7541637 | I219: 140.1232366 | J219: 144.5638681
B220: 95 | C220: 109.8325437 | D220: 115.8175511 | E220: 120.6286645 | F220: 125.3955687 | G220: 130.610905 | H220: 134.9379938 | I220: 140.3070667 | J220: 144.7476981
B221: 96 | C221: 110.0144488 | D221: 115.9994562 | E221: 120.8105697 | F221: 125.5774738 | G221: 130.7928101 | H221: 135.1198989 | I221: 140.4889718 | J221: 144.9296032
B222: 97 | C222: 110.1944689 | D222: 116.1794762 | E222: 120.9905897 | F222: 125.7574939 | G222: 130.9728302 | H222: 135.299919 | I222: 140.6689918 | J222: 145.1096233
B223: 98 | C223: 110.3726425 | D223: 116.3576499 | E223: 121.1687634 | F223: 125.9356675 | G223: 131.1510038 | H223: 135.4780926 | I223: 140.8471655 | J223: 145.2877969
B224: 99 | C224: 110.5490073 | D224: 116.5340147 | E224: 121.3451281 | F224: 126.1120323 | G224: 131.3273686 | H224: 135.6544574 | I224: 141.0235303 | J224: 145.4641617
B225: 100 | C225: 110.7235995 | D225: 116.7086069 | E225: 121.5197203 | F225: 126.2866245 | G225: 131.5019608 | H225: 135.8290496 | I225: 141.1981225 | J225: 145.6387539

Sheet Ported T-S Model
B3: Vanatoo's Ported Loudspeaker Model
B5: Nothing can be changed by the user without "unprotecting" the sheet with the password!
B7: Sheet Password: | C7: Opensesame
B9: Parameter Input | C9: Symbol | D9: Units | E9: Value
B11: Inputs from Bass Reflex Model
B12: Driver size | C12: d | D12: in | E12: ='SPLM vs f3 vs Power vs Vb'!D5 -> 8
B13: System -3dB frequency | C13: f3 | D13: Hz | E13: ='SPLM vs f3 vs Power vs Vb'!D6 -> 30
B15: Physical Parameters
B16: Air Density | C16: Rho | D16: Kg/m^3 | E16: 1.204
B17: Speed of Sound | C17: SS | D17: m/s | E17: 343.2
B19: Driver T/S Input Parameters
B20: Voice Coil Resistance | C20: Re | D20: W | E20: ='SPLM vs f3 vs Power vs Vb'!C119 -> 6
B21: Voice Coil Inductance | C21: Le | D21: H | E21: ='SPLM vs f3 vs Power vs Vb'!C120 -> 0
B22: Driver Resonant Frequency | C22: Fs | D22: Hz | E22: ='SPLM vs f3 vs Power vs Vb'!D6 -> 30
B23: Driver Mechanical Q | C23: Qms | D23: - | E23: =Qms -> 3
B24: Driver Electrical Q | C24: Qes | D24: - | E24: ='SPLM vs f3 vs Power vs Vb'!C121 -> 0.4679408138
B25: Driver Total Q | C25: Qts | D25: - | E25: =0.4048 -> 0.4048
B26: Driver Cone Area | C26: Sd | D26: m^2 | E26: =0.00035*E12^2 -> 0.0224
B27: Driver Equivalent Volume | C27: Vas | D27: m^3 | E27: ='SPLM vs f3 vs Power vs Vb'!C126 -> 0.04184514131
B28: Driver Maximum Excursion | C28: Xdmax | D28: mm | E28: =2+E12/2 -> 6
B29: Calculated Driver Parameters
B30: Driver Mechanical Stiffness | C30: Kd | D30: N/m | E30: =Kd -> 1704.150139
B31: Driver Moving Mass | C31: Md | D31: Kg | E31: =Md -> 0.04791479051
B32: Driver Viscous Damping | C32: Dd | D32: Kg/s | E32: =Dd -> 3.013436222
B33: Driver Force Factor | C33: Bl | D33: N/A | E33: =Bl -> 10.7640207
B34: Driver One Volt Sensitivity | C34: SensV | D34: dB/V*m | E34: =79.6+20*LOG10((Sd*Bl)/(Md*Re)) -> 78.07203397
B36: Box Input Parameters
B37: Box Volume | C37: Vb | D37: m^3 | E37: =0.001*'SPLM vs f3 vs Power vs Vb'!C107 -> 0.03941812311
B38: Box Tuning Frequency | C38: Fb | D38: Hz | E38: ='SPLM vs f3 vs Power vs Vb'!D6 -> 30
B39: Box Leakage Q | C39: Qbl | D39: - | E39: 7
B41: Port Input Parameters
B42: Port Area | C42: Sp | D42: m^2 | E42: ='SPLM vs f3 vs Power vs Vb'!C108 -> 0.003825513372
B43: Port Diameter | C43: Dp | D43: m | E43: =Dp -> 2.746279014
B44: Port Maximum Velocity | C44: Vpm | D44: m/s | E44: 20
B46: Calculated Parameters
B47: Box Leakage Viscous Damping | C47: Dbl | D47: Kg/s | E47: =(Qbl*Rho*SS^2*Sp^2)/(2*PI()*Fb*(0.001*Vb)) -> 1.955246284
B48: Port Moving Mass | C48: Mp | D48: Kg | E48: =Kbp/(2*PI()*Fb)^2 -> 0.001481843386
B49: Box Stiffness to Port | C49: Kbp | D49: N/m | E49: =(Rho*SS^2*Sp^2)/(0.001*Vb) -> 52.65074883
B50: Port Length | C50: Lp | D50: m | E50: =(2984*Sp)/((0.001*Vb)*Fb^2)-1.46*SQRT(Sp/PI()) -> 0.2708258762
B54: Design Check
B55: Max 1 Volt Driver Displacement | C55: 1VXd | D55: mm | E55: =MAX(J157:J307) -> 0.260783009
B56: Max Drive Voltage Based on Woofer | C56: MVd | D56: V | E56: =Xdmax/E55 -> 23.00763391
B57: Max 1 Volt Port Velocity | C57: 1VVp | D57: m/s | E57: =MAX(L157:L307) -> 0.8783283677
B58: Max Drive Voltage Based on Port | C58: MVp | D58: V | E58: =Vpm/E57 -> 22.77052721
B59: Maximum Drive Voltage | C59: MaxV | D59: V | E59: =IF(MVd<MVp,MVd,MVp) -> 22.77052721
B60: Recommedned Port Area | C60: SpR | D60: m^2 | E60: =Sp*MVd/MVp -> 0.003865347971
B61: Recommended Port Length | C61: LpR | D61: m | E61: =(2984*SpR)/((0.001*Vb)*Fb^2)-1.46*SQRT(SpR/PI()) -> 0.2708258762
B62: Max Port Length that will Comfortably Fit | C62: LpM | D62: m | E62: =(0.001*Vb)^(1/3)-2*SQRT(Sp/PI()) -> 0.2705376763
F155: One Volt Solution for Displacements, Velocities, Sound Pressures, and Impedance | R155: Maximum Output | W155: Power
C156: Freq [Hz] | D156: Freq [rad/s] | E156: Im Freq | F156: Bw | G156: Xd 1 | H156: Vd1 | I156: |Xd 1| [mm] | J156: Max |Xd1| | K156: Vp 1 | L156: |VP 1| [m/s] | M156: SPd 1 | N156: SPp 1 | O156: SPL 1 | P156: |Zin| | Q156: Ph Zin | R156: XdV | S156: VpV | T156: SPdM | U156: SPpM | V156: SPLM | W156: Watts
C157: 10 | D157: =2*PI()*C157 -> 62.83185307 | E157: =COMPLEX(0,2*PI()*C157) -> 62.8318530717959i | F157: =IMPRODUCT(IMDIV(COMPLEX(0,Sd*Dbl/Sp*D157),COMPLEX(Kbp,Dbl*D157)),IMSUM(IMDIV(IMPRODUCT(COMPLEX(Kbp,0),IMSUB(COMPLEX(1,0),IMDIV(COMPLEX(Kbp,0),COMPLEX(Kbp,Dbl*D157)))),IMSUB(Mp*D157^2,IMPRODUCT(COMPLEX(Kbp,0),IMSUB(COMPLEX(1,0),IMDIV(COMPLEX(Kbp,0),COMPLEX(Kbp,Dbl*D157)))))),COMPLEX(1,0))) -> -0.729833360974125+0.0390982157664596i | G157: =IMDIV(COMPLEX(Bl,0),IMPRODUCT(COMPLEX(Re,Le*D157),IMSUM(COMPLEX(Kd-Md*D157^2,0),IMPRODUCT(E157,IMSUM(COMPLEX(Dd,0),IMDIV(COMPLEX(Bl^2,0),COMPLEX(Re,Le*D157)))),IMPRODUCT(COMPLEX(Sd*Kbp/Sp,0),F157)))) -> 0.000631357792309692-0.000692405216197274i | H157: =IMPRODUCT(E157,G157) -> 0.0435051028102522+0.039669380042136i | I157: =1000*IMABS(G157) -> 0.9370366297 | J157: =IF(AND(I158>I157,I158>I159),I158,0) -> 0 | K157: =IMPRODUCT(E157,IMPRODUCT(IMDIV(COMPLEX(0,Sd*Kbp*Dbl/Sp*D157),IMPRODUCT(COMPLEX(Kbp,Dbl*D157),IMSUB(COMPLEX(Mp*D157^2,0),IMPRODUCT(COMPLEX(Kbp,0),IMSUB(COMPLEX(1,0),IMDIV(COMPLEX(Kbp,0),COMPLEX(Kbp,Dbl*D157))))))),G157)) -> -0.299722296453657-0.245259585605641i | L157: =IMABS(K157) -> 0.3872798979 | M157: =79.6+20*LOG10(IMABS(IMPRODUCT(COMPLEX(Sd*D157,0),H157))) -> 57.96728647 | N157: =79.6+20*LOG10(IMABS(IMPRODUCT(COMPLEX(Sp*D157,0),K157))) -> 58.97789096 | O157: =79.6+20*LOG10(IMABS(IMSUM(IMPRODUCT(COMPLEX(Sd*D157,0),H157),IMPRODUCT(COMPLEX(Sp*D157,0),K157)))) -> 40.6253599 | P157: =IMABS(IMDIV(COMPLEX(Re,D157*Le),IMSUB(COMPLEX(1,0),IMPRODUCT(COMPLEX(Bl,0),H157)))) -> 8.798387563 | Q157: =180/PI()*IMARGUMENT(IMDIV(COMPLEX(Re,D157*Le),IMSUB(COMPLEX(1,0),IMPRODUCT(COMPLEX(Bl,0),H157)))) -> 38.76700349 | R157: =MaxV*I157 -> 21.33681808 | S157: =MaxV*L157 -> 8.818567455 | T157: =20*LOG10(MaxV)+M157 -> 85.11474819 | U157: =20*LOG10(MaxV)+N157 -> 86.12535268 | V157: =20*LOG10(MaxV)+O157 -> 67.77282162 | W157: =IMABS(IMDIV(COMPLEX($E$59^2,0),IMDIV(COMPLEX(Re,D157*Le),IMSUB(COMPLEX(1,0),IMPRODUCT(COMPLEX(Bl,0),H157))))) -> 58.93090136
C158: 10.23 | D158: =2*PI()*C158 -> 64.27698569 | E158: =COMPLEX(0,2*PI()*C158) -> 64.2769856924472i | F158: =IMPRODUCT(IMDIV(COMPLEX(0,Sd*Dbl/Sp*D158),COMPLEX(Kbp,Dbl*D158)),IMSUM(IMDIV(IMPRODUCT(COMPLEX(Kbp,0),IMSUB(COMPLEX(1,0),IMDIV(COMPLEX(Kbp,0),COMPLEX(Kbp,Dbl*D158)))),IMSUB(Mp*D158^2,IMPRODUCT(COMPLEX(Kbp,0),IMSUB(COMPLEX(1,0),IMDIV(COMPLEX(Kbp,0),COMPLEX(Kbp,Dbl*D158)))))),COMPLEX(1,0))) -> -0.768130801987594+0.0423425810172439i | G158: =IMDIV(COMPLEX(Bl,0),IMPRODUCT(COMPLEX(Re,Le*D158),IMSUM(COMPLEX(Kd-Md*D158^2,0),IMPRODUCT(E158,IMSUM(COMPLEX(Dd,0),IMDIV(COMPLEX(Bl^2,0),COMPLEX(Re,Le*D158)))),IMPRODUCT(COMPLEX(Sd*Kbp/Sp,0),F158)))) -> 0.00061415503373014-0.000700566607818777i | H158: 0.0450303098273738+0.0394760343160166i | I158: =1000*IMABS(G158) -> 0.9316544303 | J158: 0 | K158: -0.311836716081873-0.244374045255507i | L158: =IMABS(K158) -> 0.3961828006 | M158: 58.31227752 | N158: 59.37281688 | O158: 41.38524531 | P158: =IMABS(IMDIV(COMPLEX(Re,D158*Le),IMSUB(COMPLEX(1,0),IMPRODUCT(COMPLEX(Bl,0),H158)))) -> 8.983441138 | Q158: 39.50967994 | R158: 21.21426256 | S158: 9.021291243 | T158: 85.45973924 | U158: 86.5202786 | V158: 68.53270703 | W158: 57.71695964
C159: 10.47 | D159: 65.78495017 | E159: 65.7849501661703i | F159: -0.809503445914672+0.0459571565742111i | G159: 0.000596014707679045-0.000708568945248907i | H159: 0.0466131727524952+0.0392087978429705i | I159: =1000*IMABS(G159) -> 0.925906843 | J159: 0 | K159: -0.324590510995118-0.242998399729467i | L159: 0.4054716046 | M159: 58.66136824 | N159: 59.7755344 | O159: 42.16131875 | P159: 9.188681523 | Q159: 40.26610302 | R159: 21.08338697 | S159: 9.232802206 | T159: 85.80882997 | U159: 86.92299612 | V159: 69.30878047 | W159: 56.4277811
C160: 10.72 | D160: 67.35574649 | E160: 67.3557464929652i | F160: -0.854177905501043+0.0499863625475557i | G160: 0.00057692874753263-0.000716339763920652i | H160: 0.04824959954147+0.0388594664633117i | I160: 0.9197768409 | J160: 0 | K160: -0.337983880135584-0.241066427372454i | L160: 0.4151459089 | M160: 59.01359592 | N160: 60.18530281 | O160: 42.95218543 | P160: 9.416742536 | Q160: 41.03188699 | R160: 20.94380359 | S160: 9.453091215 | T160: 86.16105764 | U160: 87.33276453 | V160: 70.09964715 | W160: 55.06117509
C161: 10.96 | D161: 68.86371097 | E161: 68.8637109666883i | F161: -0.898627975566854+0.0541236169210819i | G161: 0.000558439982752164-0.000723251099506179i | H161: 0.049805754672733+0.0384562495644874i | I161: 0.9137545443 | J161: 0 | K161: -0.35093115835544-0.238724548265185i | L161: 0.4244314878 | M161: 59.34116826 | N161: 60.56975486 | O161: 43.69526688 | P161: 9.650552512 | Q161: 41.74356238 | R161: 20.80667272 | S161: 9.664528744 | T161: 86.48862999 | U161: 87.71721658 | V161: 70.8427286 | W161: 53.72717354
C162: 11.22 | D162: 70.49733915 | E162: 70.497339146555i | F162: -0.948566770925058+0.0589223966255312i | G162: 0.000538245112583771-0.000730125173985062i | H162: 0.0514718820098624+0.0379448482457938i | I162: 0.9070780401 | J162: 0 | K162: -0.365039880392385-0.235639963445527i | L162: 0.4344885576 | M162: 59.68476244 | N162: 60.97681586 | O162: 44.48315405 | P162: 9.921775871 | Q162: 42.48575791 | R162: 20.6546452 | S162: 9.893533524 | T162: 86.83222416 | U162: 88.12427759 | V162: 71.63061577 | W162: 52.25847835
C163: 11.48 | D163: 72.13096733 | E163: 72.1309673264217i | F163: -1.0004251699539+0.0640722510649745i | G163: 0.000517897935796123-0.0007363549380087i | H163: 0.0531139939741548+0.0373564790853314i | I163: 0.900242671 | J163: 0 | K163: -0.379216400738176-0.231976728978445i | L163: 0.4445427779 | M163: 60.01702251 | N163: 61.3745008 | O163: 45.2539658 | P163: 10.21340865 | Q163: 43.19462128 | R163: 20.49900024 | S163: 10.12247342 | T163: 87.16448423 | U163: 88.52196252 | V163: 72.40142752 | W163: 50.76629434
C164: 11.75 | D164: 73.82742736 | E164: 73.8274273593601i | F164: -1.05638398285414+0.0698173789012578i | G164: 0.000496628951536455-0.000742135670204011i | H164: 0.0547899672827766+0.0366648378441128i | I164: 0.8929757379 | J164: 0 | K164: -0.393989519683243-0.227550348385877i | L164: 0.4549801124 | M164: 60.35046295 | N164: 61.77799746 | O164: 46.03710081 | P164: 10.54004821 | Q164: 43.89119778 | R164: 20.33352834 | S164: 10.36013703 | T164: 87.49792467 | U164: 88.92545918 | V164: 73.18456253 | W164: 49.19303017
C165: 12.02 | D165: 75.52388739 | E165: 75.5238873922986i | F165: -1.11456940499222+0.0759957078243431i | G165: 0.000475241139967363-0.000747208478404152i | H165: 0.056432088981566+0.0358920583390827i | I165: 0.8855363636 | J165: 0 | K165: -0.408793234207977-0.222480240951011i | L165: 0.4654131132 | M165: 60.6724618 | N165: 62.17225352 | O165: 46.80331023 | P165: 10.89348816 | Q165: 44.54240014 | R165: 20.16412987 | S165: 10.59770196 | T165: 87.81992352 | U165: 89.31971524 | V165: 73.95077195 | W165: 47.59695901
C166: 12.3 | D166: 77.28317928 | E166: 77.2831792783089i | F166: -1.17735478155619+0.0828937991238666i | G166: 0.00045296097738738-0.000751715287678386i | H166: 0.0580949473438943+0.0350062644215069i | I166: 0.8776386049 | J166: 0 | K166: -0.424153279539689-0.216532313538634i | L166: 0.4762270964 | M166: 60.99467393 | N166: 62.57177613 | O166: 47.58075488 | P166: 11.29148692 | Q166: 45.16342006 | R166: 19.98429374 | S166: 10.84394206 | T166: 88.14213565 | U166: 89.71923785 | V166: 74.7282166 | W166: 45.91927648
C167: 12.59 | D167: 79.10530302 | E167: 79.105303017391i | F167: -1.24511573040466+0.0906050185297053i | G167: 0.000429805771575669-0.000755567873710913i | H167: 0.0597694256001076+0.0339999157991168i | I167: 0.8692616482 | J167: 0 | K167: -0.440042960023118-0.209620694916647i | L167: 0.487420396 | M167: 61.31619469 | N167: 62.97598042 | O167: 48.36832033 | P167: 11.74146155 | Q167: 45.74013522 | R167: 19.79354602 | S167: 11.09881939 | T167: 88.46365641 | U167: 90.12344214 | V167: 75.51578206 | W167: 44.15948623
C168: 12.88 | D168: 80.92742676 | E168: 80.9274267564731i | F168: -1.31577874942345+0.0989380641806564i | G168: 0.000406599715055609-0.000758585577782045i | H168: 0.0613903787844733+0.0329050686593656i | I168: 0.8606831049 | J168: 0 | K168: -0.455883668506596-0.201934184448991i | L168: 0.4986053891 | M168: 61.62565518 | N168: 63.37084848 | O168: 49.13866739 | P168: 12.23463878 | Q168: 46.23913615 | R168: 19.59820806 | S168: 11.35350758 | T168: 88.7731169 | U168: 90.5183102 | V168: 76.28612911 | W168: 42.37942116
C169: 13.18 | D169: 82.81238235 | E169: 82.8123823486269i | F169: -1.39207134294422+0.108265849703165i | G169: 0.000382572587974721-0.000760823904572649i | H169: 0.0630056400854454+0.0316817474314663i | I169: 0.8515954432 | J169: 0 | K169: -0.472185967042644-0.193156643857419i | L169: 0.5101657344 | M169: 61.93343809 | N169: 63.76992577 | O169: 49.91819954 | P169: 12.79623825 | Q169: 46.66067666 | R169: 19.39127721 | S169: 11.61674274 | T169: 89.08089981 | U169: 90.91738749 | V169: 77.06566126 | W169: 40.51947921
C170: 13.49 | D170: 84.76016979 | E170: 84.7601697938526i | F170: -1.47448083177273+0.118723807081605i | G170: 0.000357758497242424-0.000762188767364196i | H170: 0.0646032493367565+0.0303236709714614i | I170: 0.8419755694 | J170: 0 | K170: -0.488903759431575-0.183193410140845i | L170: 0.5220983734 | M170: 62.23862289 | N170: 64.17267765 | O170: 50.70590458 | P170: 13.43904501 | Q170: 46.97822019 | R170: 19.17222762 | S170: 11.88845522 | T170: 89.38608462 | U170: 91.32013937 | V170: 77.8533663 | W170: 38.58138053
C171: 13.8 | D171: 86.70795724 | E171: 86.7079572390783i | F171: -1.56070394799594+0.130086942103012i | G171: 0.000332996806910511-0.00076258677498774i | H171: 0.0661223414767236+0.0288734728943462i | I171: 0.8321210626 | J171: 0 | K171: -0.505451139840156-0.172312334268246i | L171: 0.5340153512 | M171: 62.53104886 | N171: 64.56604842 | O171: 51.47623771 | P171: 14.15449279 | Q171: 47.15450478 | R171: 18.9478353 | S171: 12.15981109 | T171: 89.67851058 | U171: 91.71351014 | V171: 78.62369943 | W171: 36.63126029
C172: 14.13 | D172: 88.78140839 | E172: 88.7814083904476i | F172: -1.65690176016566+0.143268687291426i | G172: 0.000306739250022686-0.000761945772736871i | H172: 0.0676466188207273+0.0272327426256437i | I172: 0.8213710051 | J172: 0 | K172: -0.522831221823919-0.15971049946772i | L172: 0.5466808302 | M172: 62.82862893 | N172: 64.974912 | O172: 52.277953 | P172: 15.00797205 | Q172: 47.15735811 | R172: 18.70305083 | S172: 12.44821072 | T172: 89.97609066 | U172: 92.12237372 | V172: 79.42541472 | W172: 34.54809935
C173: 14.45 | D173: 90.79202769 | E173: 90.792027688745i | F173: -1.75476704340185+0.157220210124906i | G173: 0.000281422087944615-0.00076027488610389i | H173: 0.0690268985102018+0.0255508820008919i | I173: 0.8106887775 | J173: 0 | K173: -0.53940406597575-0.146478514190549i | L173: 0.5589389068 | M173: 63.10395221 | N173: 65.36203562 | O173: 53.03804923 | P173: 15.93992159 | Q173: 46.94175535 | R173: 18.45981087 | S173: 12.72733359 | T173: 90.25141393 | U173: 92.50949734 | V173: 80.18551095 | W173: 32.52819699
C174: 14.79 | D174: 92.92831069 | E174: 92.9283106931861i | F174: -1.86397851954408+0.173429118007673i | G174: 0.00025472916616496-0.000757368460612414i | H174: 0.0703809716170105+0.0236715510959936i | I174: 0.7990581538 | J174: 0 | K174: -0.556653002099166-0.13131982824517i | L174: 0.5719330923 | M174: 63.38244981 | N174: 65.76365985 | O174: 53.82769835 | P174: 17.06019666 | Q174: 46.4266641 | R174: 18.19497544 | S174: 13.02321804 | T174: 90.52991153 | U174: 92.91112157 | V174: 80.97516007 | W174: 30.39220004
C175: 15.14 | D175: 95.12742555 | E175: 95.1274255506989i | F175: -1.98237071473211+0.191758047498809i | G175: 0.000227529803367395-0.000753162380295851i | H175: 0.0716463982591807+0.021644324430397i | I175: 0.7867803903 | J175: 0 | K175: -0.573956919938402-0.11452542149724i | L175: 0.5852714055 | M175: 63.65426065 | N175: 66.16705548 | O175: 54.62200024 | P175: 18.37453963 | Q175: 45.51903266 | R175: 17.91540429 | S175: 13.32693847 | T175: 90.80172237 | U175: 93.31451721 | V175: 81.76946197 | W175: 28.21822587
C176: 15.49 | D176: 97.32654041 | E176: 97.3265404082118i | F176: -2.10720502322185+0.211932751274579i | G176: 0.00020067301209041-0.000747730160924381i | H176: 0.0727739897216455+0.0195308100200549i | I176: 0.7741899323 | J176: 0 | K176: -0.59073094286101-0.0965199489665253i | L176: 0.5985642383 | M176: 63.9111622 | N176: 66.56063553 | O176: 55.39818297 | P176: 19.87475202 | Q176: 44.13715429 | R176: 17.62871292 | S176: 13.62962328 | T176: 91.05862392 | U176: 93.70809725 | V176: 82.54564469 | W176: 26.08822032
C177: 15.85 | D177: 99.58848712 | E177: 99.5884871187964i | F177: -2.24277630772997+0.234824097040883i | G177: 0.000173471101176063-0.00074087227909307i | H177: 0.0737823494231335+0.0172757245249558i | I177: 0.7609099532 | J177: 0 | K177: -0.6073526673146-0.0767357257981998i | L177: 0.6121810468 | M177: 64.15999106 | N177: 66.95557478 | O177: 56.17834524 | P177: 21.63155594 | Q177: 42.09952957 | R177: 17.3263208 | S177: 13.93968519 | T177: 91.30745278 | U177: 94.1030365 | V177: 83.32580696 | W177: 23.969469
C178: 16.22 | D178: 101.9132657 | E178: 101.913265682453i | F178: -2.39022083968801+0.260875283744727i | G178: 0.000146030807375593-0.000732494009027036i | H178: 0.0746508565527775+0.0148824764698919i | I178: 0.7469086088 | J178: 0 | K178: -0.623680302797169-0.0550691623711185i | L178: 0.6261068062 | M178: 64.3995384 | N178: 67.35137735 | O178: 56.96164536 | P178: 23.66946989 | Q178: 39.19459865 | R178: 17.0075028 | S178: 14.25678207 | T178: 91.54700012 | U178: 94.49883907 | V178: 84.10910709 | W178: 21.90572548
C179: 16.6 | D179: 104.3008761 | E179: 104.300876099181i | F179: -2.55083754798438+0.290618588288521i | G179: 0.000118473086771-0.000722503610495048i | H179: 0.0753577595594549+0.0123568467443896i | I179: 0.7321525384 | J179: 0 | K179: -0.639551744721689-0.0314194681937516i | L179: 0.6403230569 | M179: 64.62851007 | N179: 67.74753642 | O179: 57.74724794 | P179: 25.97551736 | Q179: 35.15785763 | R179: 16.6714993 | S179: 14.58049359 | T179: 91.77597179 | U179: 94.89499814 | V179: 84.89470966 | W179: 19.96098489
C180: 16.98 | D180: 106.6884865 | E180: 106.688486515909i | F180: -2.72148431948535+0.323774573753463i | G180: 0.0000916302327440299-0.000711131575207344i | H180: 0.0758695514725459+0.00977589085056104i | I180: 0.7170106114 | J180: 0 | K180: -0.654406284109304-0.00636885830111454i | L180: 0.6544372751 | M180: 64.8401742 | N180: 68.13350613 | O180: 58.5143739 | P180: 28.38348943 | Q180: 29.85383711 | R180: 16.32670964 | S180: 14.90188178 | T180: 91.98763592 | U180: 95.28096785 | V180: 85.66183563 | W180: 18.26755343
C181: 17.38 | D181: 109.2017606 | E181: 109.201760638781i | F181: -2.91283429911098+0.362856038953369i | G181: 0.0000642397325889292-0.000697698838399864i | H181: 0.0761899415488975+0.00701509190167555i | I181: 0.7006499928 | J181: 0 | K181: -0.668820056604161+0.0214886695893837i | L181: 0.6691651747 | M181: 65.04416842 | N181: 68.52905391 | O181: 59.30255454 | P181: 30.75418161 | Q181: 22.77071929 | R181: 15.95416973 | S181: 15.23724382 | T181: 92.19163014 | U181: 95.67651564 | V181: 86.45001626 | W181: 16.85939545
C182: 17.78 | D182: 111.7150348 | E182: 111.715034761653i | F182: -3.11723595967062+0.40682468564475i | G182: 0.0000378348752683868-0.000682804576588201i | H182: 0.0762795370089666+0.00422672440581064i | I182: 0.6838520071 | J182: 0 | K182: -0.681845624819437+0.050837037165439i | L182: 0.683738152 | M182: 65.22866788 | N182: 68.91382326 | O182: 60.07151421 | P182: 32.49932069 | Q182: 14.26662344 | R182: 15.57167074 | S182: 15.5690782 | T182: 92.37612961 | U182: 96.06128498 | V182: 87.21897593 | W182: 15.95408453
C183: 18.2 | D183: 114.3539726 | E183: 114.353972590668i | F183: -3.34718633822084+0.459034626874643i | G183: 0.0000112813605929607-0.000665643049644065i | H183: 0.0761189270541661+0.00129006840003287i | I183: 0.6657386414 | J183: 0 | K183: -0.693873858544096+0.0832049618373463i | L183: 0.698844759 | M183: 65.40108593 | N183: 69.30643386 | O183: 60.85881694 | P183: 33.11492085 | Q183: 4.395501613 | R183: 15.15921985 | S183: 15.9130636 | T183: 92.54854765 | U183: 96.45389559 | V183: 88.00627866 | W183: 15.6575011
C184: 18.62 | D184: 116.9929104 | E184: 116.992910419684i | F184: -3.59434035182256+0.518399857283246i | G184: -0.0000139556185640836-0.000646983673377161i | H184: 0.0756925029424123-0.00163270843251911i | I184: 0.6471341692 | J184: 0 | K184: -0.704047596898582+0.11709324505853i | L184: 0.7137183245 | M184: 65.5512288 | N184: 69.68752233 | O184: 61.62604792 | P184: 32.24486687 | Q184: -5.419546334 | R184: 14.73558621 | S184: 16.25174253 | T184: 92.69869052 | U184: 96.83498405 | V184: 88.77350964 | W184: 16.07998295
C185: 19.05 | D185: 119.6946801 | E185: 119.694680101771i | F185: -3.86700176713329+0.587813335279416i | G185: -0.0000383056409377069-0.000626404956805051i | H185: 0.0749773409189443-0.00458498143813213i | I185: 0.6275750888 | J185: 0 | K185: -0.712362568286113+0.153271280698065i | L185: 0.7286648847 | M185: 65.68126823 | N185: 70.06584827 | O185: 62.39122228 | P185: 30.12738695 | Q185: -14.34807492 | R185: 14.29021564 | S185: 16.59208359 | T185: 92.82872995 | U185: 97.21330999 | V185: 89.538684 | W185: 17.21015202
C186: 19.5 | D186: 122.5221135 | E186: 122.522113490002i | F186: -4.1758749989826+0.671445578067695i | G186: -0.0000620393754983642-0.000603369846806989i | H186: 0.073926148846931-0.00760119540565943i | I186: 0.606550951 | J186: 0 | K186: -0.718585959048067+0.19261308308573i | L186: 0.7439526734 | M186: 65.79088532 | N186: 70.44899026 | O186: 63.17039424 | P186: 27.26835984 | Q186: -21.82956673 | R186: 13.81148494 | S186: 16.9401946 | T186: 92.93834704 | U186: 97.59645198 | V186: 90.31785596 | W186: 19.01459834
C187: 19.95 | D187: 125.3495469 | E187: 125.349546878233i | F187: -4.51152604658273+0.768401191206769i | G187: -0.000083843415071395-0.000578920960882759i | H187: 0.0725674801249651-0.010509734087923i | I187: 0.584960851 | J187: 0 | K187: -0.722063168129862+0.233310819721227i | L187: 0.7588208994 | M187: 65.87240713 | N187: 70.81903553 | O187: 63.92783605 | P187: 24.35182277 | Q187: -27.33171897 | R187: 13.31986698 | S187: 17.27875194 | T187: 93.01986885 | U187: 97.96649725 | V187: 91.07529777 | W187: 21.29191373
C188: 20.42 | D188: 128.302644 | E188: 128.302643972607i | F188: -4.89411481932841+0.886716430868443i | G188: -0.000104405639697404-0.000552027060647707i | H188: 0.0708265314255275-0.0133955196188283i | I188: 0.561813504 | J188: 0 | K188: -0.722534020473921+0.277056529367113i | L188: 0.7738318494 | M188: 65.92622809 | N188: 71.19143862 | O188: 64.69602629 | P188: 21.58681905 | Q188: -31.24951237 | R188: 12.79278968 | S188: 17.62055919 | T188: 93.07368981 | U188: 98.33890034 | V188: 91.84348801 | W188: 24.01914373
C189: 20.89 | D189: 131.2557411 | E189: 131.255741066982i | F189: -5.31352958175775+1.0261100224958i | G189: -0.00012256047348455-0.000523923841833881i | H189: 0.0687680121225663-0.0160867657727348i | I189: 0.5380680828 | J189: 0 | K189: -0.719547094442568+0.321813678677688i | L189: 0.7882335091 | M189: 65.94643733 | N189: 71.54925852 | O189: 65.44099443 | P189: 19.2184064 | Q189: -33.68576399 | R189: =MaxV*I189 -> 12.25209392 | S189: =MaxV*L189 -> 17.94849257 | T189: =20*LOG10(MaxV)+M189 -> 93.09389905 | U189: =20*LOG10(MaxV)+N189 -> 98.69672025 | V189: 92.58845615 | W189: 26.97918333
C190: 21.38 | D190: 134.3345019 | E190: 134.3345018675i | F190: -5.79523001922603+1.19894767019959i | G190: -0.000138774645300065-0.000493558551969794i | H190: 0.0663019422213069-0.0186422228482232i | I190: 0.5126972268 | J190: 0 | K190: -0.712518979511947+0.369227852035469i | L190: 0.8025038959 | M190: 65.9296825 | N190: 71.90648886 | O190: 66.19303985 | P190: 17.16049716 | Q190: -35.02398568 | R190: 11.67438616 | S190: 18.2734368 | T190: 93.07714422 | U190: 99.05395058 | V190: 93.34050157 | W190: 30.21456224
C191: 21.88 | D191: 137.4760945 | E191: 137.476094521089i | F191: -6.34007635744468+1.41126647248085i | G191: -0.000152322672474741-0.000461718436809775i | H191: 0.0634752474609901-0.0209407261188424i | I191: 0.4861955486 | J191: 0 | K191: -0.701007644168673+0.418001426329769i | L191: 0.8161721078 | M191: 65.87026737 | N191: 72.25397319 | O191: 66.93452224 | P191: 15.43343205 | Q191: -35.4364125 | R191: 11.07092897 | S191: 18.58466919 | T191: 93.01772909 | U191: 99.40143491 | V191: 94.08198397 | W191: 33.59569718
C192: 22.39 | D192: 140.680519 | E192: 140.680519027751i | F192: -6.95948840849714+1.67502606280954i | G192: -0.000162898718711115-0.00042866796316404i | H192: 0.060305231548486-0.0229166762972353i | I192: 0.4585762916 | J192: 0 | K192: -0.684557138908733+0.467674847380368i | L192: 0.8290586465 | M192: 65.7625508 | N192: 72.59017879 | O192: 67.66376588 | P192: 13.98905965 | Q192: -35.10849591 | R192: 10.44202393 | S192: 18.87810247 | T192: 92.91001252 | U192: 99.73764051 | V192: 94.8112276 | W192: 37.0644577
C193: 22.91 | D193: 143.9477754 | E193: 143.947775387484i | F193: -7.66738922498753+2.00683569635638i | G193: -0.000170216370923801-0.000394740004280712i | H193: 0.0568219454726544-0.024502267929012i | I193: 0.4298758936 | J193: 0 | K193: -0.662744700781786+0.517674174246521i | L193: 0.8409620022 | M193: 65.6000205 | N193: 72.9134211 | O193: 68.3789537 | P193: 12.78073219 | Q193: -34.18069014 | R193: 9.788500734 | S193: 19.14914816 | T193: 92.74748222 | U193: 100.0608828 | V193: 95.52641542 | W193: 40.56863894
C194: 23.44 | D194: 147.2778636 | E194: 147.27786360029i | F194: -8.48066505994526+2.43019120329415i | G194: -0.000174024532294627-0.000360339213506515i | H194: 0.0530699895366483-0.0256299613303923i | I194: 0.4001610759 | J194: 0 | K194: -0.635208311771074+0.56730495795298i | L194: 0.8516598585 | M194: 65.37515624 | N194: 73.22186756 | O194: 69.07813064 | P194: 11.76832248 | Q194: -32.75925248 | R194: 9.111878668 | S194: 19.39274399 | T194: 92.52261796 | U194: 100.3693293 | V194: 96.22559237 | W194: 44.05869321
C195: 23.99 | D195: 150.7336155 | E195: 150.733615519238i | F195: -9.43801420149739+2.99051709732481i | G195: -0.000174092617872918-0.000325314040862787i | H195: 0.049035761558421-0.026241609727194i | I195: 0.3689681081 | J195: 0 | K195: -0.601007346706409+0.61662463524139i | L195: 0.8610666476 | M195: 65.07314161 | N195: 73.51873217 | O195: 69.77152839 | P195: 10.90478905 | Q195: -30.88860736 | R195: 8.401598346 | S195: 19.60694153 | T195: 92.22060333 | U195: 100.6661939 | V195: 96.91899012 | W195: 47.54763316
C196: 24.55 | D196: 154.2521993 | E196: 154.252199291259i | F196: -10.5492652710994+3.73340983462438i | G196: -0.000170193585578609-0.000290887878229209i | H196: 0.0448700949640234-0.0262527348807655i | I196: 0.337018715 | J196: 0 | K196: -0.560476992102641+0.66370882209951i | L196: 0.8687023997 | M196: 64.68729533 | N196: 73.79584221 | O196: 70.44342639 | P196: 10.18323204 | Q196: -28.65959015 | R196: 7.674093822 | S196: 19.78081163 | T196: 91.83475705 | U196: 100.9433039 | V196: 97.59088812 | W196: 50.91673325
C197: 25.12 | D197: 157.8336149 | E197: 157.833614916351i | F197: -11.8396942524733+4.73864643878119i | G197: -0.000162312157713482-0.000257687471821993i | H197: 0.0406717451963205-0.0256183145967917i | I197: 0.3045456775 | J197: 0 | K197: -0.513665620541377+0.707492300272265i | L197: 0.8742984185 | M197: 64.2059893 | N197: 74.05097841 | O197: 71.0915217 | P197: 9.581684461 | Q197: -26.12735948 | R197: 6.934665637 | S197: 19.90823593 | T197: 91.35345102 | U197: 101.1984401 | V197: 98.23898342 | W197: 54.11333588
C198: 25.7 | D198: 161.4778624 | E198: 161.477862394515i | F198: -13.3286243032346+6.12940070369496i | G198: -0.00015055905912634-0.000226373365375072i | H198: 0.0365542871438191-0.0243119550318508i | I198: 0.2718693268 | J198: 0 | K198: -0.460840559522303+0.746855681744097i | L198: 0.877591836 | M198: 63.61668427 | N198: 74.28190581 | O198: 71.71350331 | P198: 9.08297585 | Q198: -23.33837946 | R198: 6.190607904 | S198: 19.98322878 | T198: 90.76414599 | U198: 101.4293675 | V198: 98.86096503 | W198: 57.08447519
C199: 26.3 | D199: 165.2477736 | E199: 165.247773578823i | F199: -15.0395862743718+8.1377573057184i | G199: -0.00013490055423259-0.000197151806428899i | H199: 0.0325788970694186-0.0222920162414848i | I199: 0.2388869907 | J199: 0 | K199: -0.401494171744507+0.781193414996852i | L199: 0.8783283677 | M199: 62.89423503 | N199: 74.48964501 | O199: 72.31684405 | P199: 8.667539701 | Q199: -20.28144179 | R199: 5.439582722 | S199: 20 | T199: 90.04169675 | U199: 101.6371067 | V199: 99.46430577 | W199: 59.82054049
C200: 26.92 | D200: 169.1433485 | E200: 169.143348469274i | F200: -16.8897495375767+11.1149079841144i | G200: -0.000115606530528392-0.00017085143499926i | H200: 0.0288983838065553-0.0195540756784876i | I200: 0.2062888333 | J200: 0 | K200: -0.33624232687051+0.809066771217405i | L200: 0.8761552047 | M200: 62.02467172 | N200: 74.67051387 | O200: 72.89736708 | P200: 8.329024579 | Q200: -16.98868488 | R200: 4.697305492 | S200: 19.95051593 | T200: 89.17213344 | U200: 101.8179756 | V200: 100.0448288 | W200: 62.25181648
C201: 27.54 | D201: 173.0389234 | E201: 173.038923359726i | F201: -18.5070782738335+15.4319230028549i | G201: -0.0000938959152121221-0.000148897973517568i | H201: 0.025765145027925-0.0162476480761817i | I201: 0.1760313876 | J201: 0 | K201: -0.268302672855359+0.82862506459994i | L201: 0.8709798057 | M201: 61.04251478 | N201: 74.81683229 | O201: 73.43445891 | P201: 8.069671425 | Q201: -13.60444398 | R201: 4.008327501 | S201: 19.83266937 | T201: 88.18997651 | U201: 101.964294 | V201: 100.5819206 | W201: 64.25254292
C202: 28.18 | D202: 177.060162 | E202: 177.060161956321i | F202: -19.0853731097364+21.7680613715075i | G202: -0.000069818558034779-0.000131034368270172i | H202: 0.0232009664677609-0.0123620851931948i | I202: 0.1484743638 | J202: 0 | K202: -0.196861836108574+0.839777295062364i | L202: 0.8625430353 | M202: 59.96282411 | N202: 74.93182708 | O202: 73.94392211 | P202: 7.874293513 | Q202: -10.05730848 | R202: 3.380839542 | S202: 19.64055966 | T202: 87.11028584 | U202: 102.0792888 | V202: 101.0913838 | W202: 65.84678469
C203: 28.84 | D203: 181.2070643 | E203: 181.207064259059i | F203: -16.6743780809432+30.195168821418i | G203: -0.0000441792847673232-0.000117766095022999i | H203: 0.021340048348371-0.0080055984937516i | I203: 0.1257802144 | J203: 0 | K203: -0.123465002702661+0.841686766634888i | L203: 0.8506939638 | M203: 58.92421196 | N203: 75.012764 | O203: 74.42258523 | P203: 7.740933481 | Q203: -6.383101946 | R203: 2.864081795 | S203: 19.37075005 | T203: 86.07167368 | U203: 102.1602257 | V203: 101.570047 | W203: 66.98118655
C204: 29.51 | D204: 185.4167984 | E204: 185.41679841487i | F204: -8.82680283853527+38.2833399534272i | G204: -0.0000182970728024831-0.000109477023644103i | H204: 0.0202988792240786-0.00339258465940021i | I204: 0.1109955025 | J204: 0 | K204: -0.0509453568178808+0.834078624674584i | L204: 0.8356330424 | M204: 58.23703112 | N204: 75.05708813 | O204: 74.86165304 | P204: 7.669151013 | Q204: -2.675356844 | R204: 2.527426111 | S204: 19.02780493 | T204: 85.38449284 | U204: 102.2045499 | V204: 102.0091148 | W204: 67.60812359
C205: 30.2 | D205: 189.7521963 | E205: 189.752196276823i | F205: 3.80536521794726+40.9072245783138i | G205: 7.24802371067793E-06-0.000105989579134722i | H205: 0.0201117554232696+0.00137532841776763i | I205: 0.1062371156 | J205: 0 | K205: 0.0200040957573249+0.81701981318718i | L205: 0.8172646689 | M205: 58.25795824 | N205: 75.0647852 | O205: 75.26680518 | P205: 7.656415861 | Q205: 1.082439599 | R205: 2.419075132 | S205: 18.60954738 | T205: 85.40541996 | U205: 102.2122469 | V205: 102.4142669 | W205: 67.72057827
C206: 30.9 | D206: 194.150426 | E206: 194.150425991849i | F206: 14.9177625864329+36.043386028679i | G206: 0.0000311728558820536-0.000107069919005009i | H206: 0.0207876703857353+0.00605222324888322i | I206: 0.1115155348 | J206: 0 | K206: 0.0866838652541935+0.791350417472829i | L206: 0.7960838999 | M206: 59.07720171 | N206: 75.03573826 | O206: 75.63197757 | P206: 7.702478934 | Q206: 4.797322608 | R206: 2.53926752 | S206: 18.12725011 | T206: 86.22466343 | U206: 102.1832 | V206: 102.7794393 | W206: 67.31558944
C207: 31.62 | D207: 198.6743194 | E207: 198.674319413019i | F207: 20.6294187510197+28.0049862232611i | G207: 0.0000530107252264899-0.000112233921536825i | H207: 0.0222979979763829+0.0105318697559634i | I207: 0.124123286 | J207: 0 | K207: 0.148570972191647+0.757682378831413i | L207: 0.7721113397 | M207: 60.40769502 | N207: 74.97022778 | O207: 75.96291063 | P207: 7.808508269 | Q207: 8.484137887 | R207: 2.826352662 | S207: 17.58138227 | T207: 87.55515674 | U207: 102.1176895 | V207: 103.1103724 | W207: 66.40153173
C208: 32.36 | D208: 203.3238765 | E208: 203.323876540331i | F208: 22.0672648998808+20.7951533127225i | G208: 0.0000720535324599862-0.00012088991083922i | H208: 0.0245798053064452+0.014650203538189i | I208: 0.1407340829 | J208: 0 | K208: 0.204341552334057+0.717159539250288i | L208: 0.7457032082 | M208: 61.90048136 | N208: 74.86888234 | O208: 76.25988755 | P208: 7.977242736 | Q208: 12.10254575 | R208: 3.204589264 | S208: 16.9800552 | T208: 89.04794309 | U208: 102.0163441 | V208: 103.4073493 | W208: 64.99700795
C209: 33.11 | D209: 208.0362655 | E209: 208.036265520716i | F209: 21.4785719327628+15.528490077087i | G209: 0.0000875981105084351-0.000132144785894817i | H209: 0.0274909077655923+0.0182235837768458i | I209: 0.1585423395 | J209: 0 | K209: 0.252430605579817+0.67180215488896i | L209: 0.7176624178 | M209: 63.33342758 | N209: 74.73497955 | O209: 76.52065706 | P209: 8.209038257 | Q209: 15.56786045 | R209: 3.610092655 | S209: 16.34155161 | T209: 90.4808893 | U209: 101.8824413 | V209: 103.6681188 | W209: 63.16171193
C210: 33.88 | D210: 212.8743182 | E210: 212.874318207244i | F210: 20.188760200004+11.8271371460042i | G210: 0.0000996172616670287-0.000145326317748245i | H210: 0.030936240808227+0.0212059566590414i | I210: 0.1761911957 | J210: 0 | K210: 0.293053483528358+0.622559989280522i | L210: 0.6880852305 | M210: 64.64957523 | N210: 74.56910461 | O210: 76.75093381 | P210: 8.510899728 | Q210: 18.89197594 | R210: 4.011966417 | S210: 15.66806347 | T210: 91.79703695 | U210: 101.7165663 | V210: 103.8983955 | W210: 60.92151548
C211: 34.67 | D211: 217.8380346 | E211: 217.838034599916i | F211: 18.7631304051471+9.2312946190817i | G211: 0.000108002793545703-0.000159654427946797i | H211: 0.0347788067991042+0.0235271162772964i | I211: 0.1927540915 | J211: 0 | K211: 0.325984433952611+0.570916061060412i | L211: 0.6574275625 | M211: 65.83038087 | N211: 74.37342684 | O211: 76.95259095 | P211: 8.88952899 | Q211: 22.03709612 | R211: 4.389112285 | S211: 14.9699722 | T211: 92.9778426 | U211: 101.5208886 | V211: 104.1000527 | W211: 58.32670214
C212: 35.48 | D212: 222.9274147 | E212: 222.927414698732i | F212: 17.4145538970539+7.37955120223297i | G212: 0.000112828416291658-0.000174392288247496i | H212: 0.0388768219624103+0.0251525471484516i | I212: 0.2077087425 | J212: 0 | K212: 0.351331840791094+0.518276725438902i | L212: 0.6261348309 | M212: 66.88059508 | N212: 74.15042135 | O212: 77.12782482 | P212: 9.353586198 | Q212: 24.96527768 | R212: 4.729637574 | S212: 14.25742021 | T212: 94.0280568 | U212: 101.2978831 | V212: 104.2752865 | W212: 55.43295359
C213: 36.31 | D213: 228.1424585 | E213: 228.142458503691i | F213: 16.2083341643008+6.02808626053376i | G213: 0.000114317582805173-0.000188887917261234i | H213: 0.0430933538256197+0.0260806943913714i | I213: 0.220787579 | J213: 0 | K213: 0.369480714917132+0.465896584275633i | L213: 0.5946222548 | M213: 67.8126978 | N213: 73.90274002 | O213: 77.2790254 | P213: 9.914178655 | Q213: 27.63731373 | R213: 5.027449575 | S213: 13.53986224 | T213: 94.96015952 | U213: 101.0502017 | V213: 104.4264871 | W213: 52.29852392
C214: 37.15 | D214: 233.4203342 | E214: 233.420334161722i | F214: 15.1640093990177+5.02856442893075i | G214: 0.000112837473513877-0.000202447110464619i | H214: 0.0472552721747264+0.0263385607735736i | I214: 0.2317695579 | J214: 0 | K214: 0.380923300240319+0.415413796585378i | L214: 0.5636232634 | M214: 68.63163567 | N214: 73.63634642 | O214: 77.40726577 | P214: 10.57697055 | Q214: 29.98527366 | R214: 5.277515025 | S214: 12.83399886 | T214: 95.77909739 | U214: 100.7838081 | V214: 104.5547275 | W214: 49.02130597
C215: 38.02 | D215: 238.8867054 | E215: 238.886705378968i | F215: 14.2448219892575+4.25482162430775i | G215: 0.000108751497965509-0.000214976780836327i | H215: 0.0513550949069666+0.025979287054008i | I215: 0.2409188756 | J215: 0 | K215: 0.386647090947112+0.366455830743471i | L215: 0.5327155421 | M215: 69.37005615 | N215: 73.34754146 | O215: 77.51801128 | P215: 11.37558585 | Q215: 32.01769456 | R215: 5.485849813 | S215: 12.13021375 | T215: 96.51751788 | U215: 100.4950032 | V215: 104.665473 | W215: 45.57979839
C216: 38.9 | D216: 244.4159084 | E216: 244.415908449286i | F216: 13.4548460130483+3.65798836036766i | G216: 0.000102577363248025-0.000225895473579524i | H216: 0.055212447389521+0.0250715394245984i | I216: 0.248094499 | J216: 0 | K216: 0.387287435593255+0.32075533002669i | L216: 0.502867318 | M216: 70.02248185 | N216: 73.0454521 | O216: 77.61098328 | P216: 12.3139133 | Q216: 33.63226229 | R216: 5.649242541 | S216: 11.45055395 | T216: 97.16994357 | U216: 100.1929138 | V216: 104.758445 | W216: 42.10659089
C217: 39.81 | D217: 250.1336071 | E217: 250.133607078819i | F217: 12.7586369444285+3.178579121284i | G217: 0.0000946106599091857-0.000235264422645382i | H217: 0.0588475386536052+0.023665305631192i | I217: 0.2535754829 | J217: 0 | K217: 0.38365677115685+0.277687857051943i | L217: 0.4736064442 | M217: 70.61398743 | N217: 72.72558747 | O217: 77.69046721 | P217: 13.44135113 | Q217: 34.79634361 | R217: 5.774047434 | S217: 10.78426843 | T217: 97.76144915 | U217: 99.87304919 | V217: 104.8379289 | W217: 38.57476115
C218: 40.74 | D218: 255.9769694 | E218: 255.976969414496i | F218: 12.1500850436883+2.79224948999901i | G218: 0.0000853323214012444-0.000242857043522305i | H218: 0.062165810001804+0.0218431090253943i | I218: 0.2574124097 | J218: 0 | K218: 0.376500391665565+0.23803635877829i | L218: 0.4454366992 | M218: 71.14558569 | N218: 72.39353225 | O218: 77.75731962 | P218: 14.78261719 | Q218: 35.39996666 | R218: 5.86141628 | S218: 10.14282848 | T218: 98.29304741 | U218: 99.54099398 | V218: 104.9047813 | W218: 35.07477079
C219: 41.69 | D219: 261.9459955 | E219: 261.945995456317i | F219: 11.6156740053195+2.47643214857625i | G219: 0.0000751288148519999-0.000248659982474964i | H219: 0.0651354866395548+0.0196796921938604i | I219: 0.259761671 | J219: 0.260783009 | K219: 0.366542507404657+0.201896159714662i | L219: 0.4184680024 | M219: 71.62493229 | N219: 72.05127487 | O219: 77.81335485 | P219: 16.37838172 | Q219: 35.32726311 | R219: 5.914910198 | S219: 9.528737037 | T219: 98.77239401 | U219: 99.1987366 | V219: 104.9608166 | W219: 31.65739561
C220: 42.66 | D220: 268.0406852 | E220: 268.040685204281i | F220: 11.1441039776666+2.21493059505898i | G220: 0.0000643425138296215-0.000252720831497663i | H220: 0.0677394648400292+0.0172464114946577i | I220: 0.260783009 | J220: 0 | K220: 0.354434353416712+0.169248169762082i | L220: 0.392770485 | M220: 72.05857499 | N220: 71.70058577 | O220: 77.86018169 | P220: 18.27241962 | Q220: 34.42666109 | R220: 5.938166602 | S220: 8.943591016 | T220: 99.20603671 | U220: 98.8480475 | V220: 105.0076434 | W220: 28.37593051
C221: 43.65 | D221: 274.2610387 | E221: 274.261038658389i | F221: =IMPRODUCT(IMDIV(COMPLEX(0,Sd*Dbl/Sp*D221),COMPLEX(Kbp,Dbl*D221)),IMSUM(IMDIV(IMPRODUCT(COMPLEX(Kbp,0),IMSUB(COMPLEX(1,0),IMDIV(COMPLEX(Kbp,0),COMPLEX(Kbp,Dbl*D221)))),IMSUB(Mp*D221^2,IMPRODUCT(COMPLEX(Kbp,0),IMSUB(COMPLEX(1,0),IMDIV(COMPLEX(Kbp,0),COMPLEX(Kbp,Dbl*D221)))))),COMPLEX(1,0))) -> 10.7260036269348+1.99590561372397i | G221: =IMDIV(COMPLEX(Bl,0),IMPRODUCT(COMPLEX(Re,Le*D221),IMSUM(COMPLEX(Kd-Md*D221^2,0),IMPRODUCT(E221,IMSUM(COMPLEX(Dd,0),IMDIV(COMPLEX(Bl^2,0),COMPLEX(Re,Le*D221)))),IMPRODUCT(COMPLEX(Sd*Kbp/Sp,0),F221)))) -> 0.0000532677520734974-0.00025513165203134i | H221: =IMPRODUCT(E221,G221) -> 0.069972671880746+0.014609269010675i | I221: 0.2606331009 | J221: =IF(AND(I222>I221,I222>I223),I222,0) -> 0 | K221: =IMPRODUCT(E221,IMPRODUCT(IMDIV(COMPLEX(0,Sd*Kbp*Dbl/Sp*D221),IMPRODUCT(COMPLEX(Kbp,Dbl*D221),IMSUB(COMPLEX(Mp*D221^2,0),IMPRODUCT(COMPLEX(Kbp,0),IMSUB(COMPLEX(1,0),IMDIV(COMPLEX(Kbp,0),COMPLEX(Kbp,Dbl*D221))))))),G221)) -> 0.340746287997726+0.139987917482982i | L221: 0.3683811203 | M221: =79.6+20*LOG10(IMABS(IMPRODUCT(COMPLEX(Sd*D221,0),H221))) -> 72.45211644 | N221: =79.6+20*LOG10(IMABS(IMPRODUCT(COMPLEX(Sp*D221,0),K221))) -> 71.3430241 | O221: =79.6+20*LOG10(IMABS(IMSUM(IMPRODUCT(COMPLEX(Sd*D221,0),H221),IMPRODUCT(COMPLEX(Sp*D221,0),K221)))) -> 77.8992094 | P221: =IMABS(IMDIV(COMPLEX(Re,D221*Le),IMSUB(COMPLEX(1,0),IMPRODUCT(COMPLEX(Bl,0),H221)))) -> 20.50213156 | Q221: =180/PI()*IMARGUMENT(IMDIV(COMPLEX(Re,D221*Le),IMSUB(COMPLEX(1,0),IMPRODUCT(COMPLEX(Bl,0),H221)))) -> 32.50287895 | R221: =MaxV*I221 -> 5.934753117 | S221: =MaxV*L221 -> 8.388232326 | T221: =20*LOG10(MaxV)+M221 -> 99.59957817 | U221: =20*LOG10(MaxV)+N221 -> 98.49048582 | V221: =20*LOG10(MaxV)+O221 -> 105.0466711 | W221: =IMABS(IMDIV(COMPLEX($E$59^2,0),IMDIV(COMPLEX(Re,D221*Le),IMSUB(COMPLEX(1,0),IMPRODUCT(COMPLEX(Bl,0),H221))))) -> 25.28990257
C222: 44.67 | D222: =2*PI()*C222 -> 280.6698877 | E222: =COMPLEX(0,2*PI()*C222) -> 280.669887671712i | F222: 10.3501679691392+1.80888226115426i | G222: 0.0000420421658177806-0.000256016227541371i | H222: 0.0718560458261721+0.011799969957552i | I222: 0.2594452784 | J222: 0 | K222: 0.325817755350604+0.11371088801338i | L222: =IMABS(K222) -> 0.3450903878 | M222: 72.81370863 | N222: 70.97636815 | O222: 77.93194915 | P222: 23.10201596 | Q222: 29.27821851 | R222: 5.907705772 | S222: 7.857890067 | T222: 99.96117035 | U222: 98.12382988 | V222: 105.0794109 | W222: 22.44379497
C223: 45.71 | D223: 287.2044004 | E223: 287.204400391179i | F223: 10.0144462991142+1.64942262263639i | G223: 0.000030983476411477-0.000255488194810424i | H223: 0.0733773337975525+0.00889859076479249i | I223: =1000*IMABS(G223) -> 0.2573600464 | J223: 0 | K223: 0.31020339664006+0.0905187389723279i | L223: 0.3231405103 | M223: 73.14342648 | N223: 70.60544441 | O223: 77.95905382 | P223: 25.97817393 | Q223: 24.50157348 | R223: 5.860223941 | S223: 7.358079783 | T223: 100.2908882 | U223: 97.75290613 | V223: 105.1065155 | W223: 19.95894365
C224: 46.77 | D224: 293.8645768 | E224: 293.864576816789i | F224: 9.71329801495546+1.51228169359173i | G224: 0.0000202535710746427-0.00025370294311505i | H224: 0.0745543080156781+0.00595180709287864i | I224: 0.254510099 | J224: 0 | K224: 0.294249328896097+0.0701749123779058i | L224: 0.3025015469 | M224: 73.44495029 | N224: 70.23129125 | O224: 77.98145027 | P224: 28.89796703 | Q224: 17.97246166 | R224: 5.795329135 | S224: 6.888119706 | T224: 100.592412 | U224: 97.37875297 | V224: 105.128912 | W224: 17.94233169
C225: 47.86 | D225: 300.7132488 | E225: 300.713248801615i | F225: 9.43974327983548+1.3923878936306i | G225: 9.88376250107874E-06-0.000250786211102874i | H225: 0.0754147362953929+0.00297217833208296i | I225: 0.2509809005 | J225: 0 | K225: 0.278087516590094+0.0522823348423355i | L225: 0.2829595544 | M225: 73.72387634 | N225: 69.851333 | O225: 78.00007623 | P225: 31.42453418 | Q225: 9.64590703 | R225: 5.714967426 | S225: 6.443138234 | T225: 100.8713381 | U225: 96.99879472 | V225: 105.147538 | W225: 16.49974846
C226: 48.98 | D226: 307.7504163 | E226: 307.750416345656i | F226: 9.19070490177608+1.2869968378885i | G226: -1.52968459480765E-08-0.000246868844228648i | H226: 0.0759739895941373-0.0000047076107092959i | I226: 0.2468688447 | J226: 0 | K226: 0.26195245379168+0.0366652917965637i | L226: 0.2645060144 | M226: 73.98223203 | N226: 69.4664785 | O226: 78.01550302 | P226: 32.92824087 | Q226: -0.01593363939 | R226: 5.621333746 | S226: 6.0229414 | T226: 101.1296937 | U226: 96.61394022 | V226: 105.1629647 | W226: 15.74626812
C227: 50.12 | D227: 314.9132476 | E227: 314.913247595841i | F227: 8.96536719734015+1.19463006905439i | G227: -0.000009282023532936-0.000242127579565268i | H227: 0.0762491824134189-0.0029230321750179i | I227: 0.2423054286 | J227: 0 | K227: 0.246170752391437+0.0232463469739214i | L227: 0.2472659135 | M227: 74.21986048 | N227: 69.08089813 | O227: 78.02812965 | P227: 32.9683687 | Q227: -9.955532461 | R227: 5.517422357 | S227: 5.630375212 | T227: 101.3673222 | U227: 96.22835985 | V227: 105.1755914 | W227: 15.72710237
C228: 51.29 | D228: 322.2645744 | E228: 322.264574405241i | F228: 8.75912672860595+1.11251003896679i | G228: -0.000017948585255016-0.000236656930393182i | H228: 0.0762661449532095-0.00578419318838392i | I228: 0.2373365847 | J228: 0 | K228: 0.230745469010322+0.0116944362682235i | L228: 0.2310416225 | M228: 74.44075683 | N228: 68.69185035 | O228: 78.03852528 | P228: 31.64811012 | Q228: -19.17218137 | R228: 5.40427916 | S228: 5.260939552 | T228: 101.5882186 | U228: 95.83931207 | V228: 105.185987 | W228: 16.38318711
C229: 52.48 | D229: 329.7415649 | E229: 329.741564920785i | F229: 8.57150614292472+1.03975070287261i | G229: -0.0000259120962111592-0.00023062998182439i | H229: 0.0760482911244266-0.00854429515504558i | I229: 0.2320810747 | J229: 0 | K229: 0.215913807133577+0.00190636181902166i | L229: 0.2159222229 | M229: 74.64470269 | N229: 68.30321523 | O229: 78.04698492 | P229: 29.49910843 | Q229: -26.88343989 | R229: 5.284608428 | S229: 4.916662852 | T229: 101.7921644 | U229: 95.45067695 | V229: 105.1944466 | W229: 17.57669764
C230: 53.7 | D230: 337.407051 | E230: 337.407050995544i | F230: 8.39897750562664+0.974428807033106i | G230: -0.0000332274914058651-0.000224113074334233i | H230: 0.0756173315006587-0.0112111898872327i | I230: 0.2265628749 | J230: 0 | K230: 0.20162690699316-0.00639144394649435i | L230: 0.2017281839 | M230: 74.83490147 | N230: 67.91220914 | O230: 78.05390457 | P230: 27.05587723 | Q230: -32.96813425 | R230: 5.158956108 | S230: 4.593457101 | T230: 101.9823632 | U230: 95.05967086 | V230: 105.2013663 | W230: 19.16392897
C231: 54.95 | D231: 345.2610326 | E231: 345.261032629518i | F231: 8.24007061254921+0.915562321467107i | G231: -0.0000398861982003443-0.000217209257199139i | H231: 0.0749938924372653-0.0137711499783165i | I231: 0.2208410519 | J231: 0 | K231: 0.187947181270016-0.013357266431624i | L231: 0.1884212289 | M231: 75.01245911 | N231: 67.51934243 | O231: 78.05953781 | P231: 24.67422371 | Q231: -37.55977654 | R231: 5.028667183 | S231: 4.290450721 | T231: 102.1599208 | U231: 94.66680415 | V231: 105.2069995 | W231: 21.01370709
C232: 56.23 | D232: 353.3035098 | E232: 353.303509822708i | F232: 8.09348343060578+0.862323265370061i | G232: -0.0000458913639907134-0.000210013014594757i | H232: 0.0741983351647753-0.0162135799684705i | I232: 0.2149685642 | J232: 0 | K232: 0.174916709686001-0.0191400481493309i | L232: 0.1759607819 | M232: 75.17837756 | N232: 67.12507119 | O232: 78.06410003 | P232: 22.51899717 | Q232: -40.92078649 | R232: 4.894947541 | S232: 4.006719773 | T232: 102.3258393 | U232: 94.27253291 | V232: 105.2115617 | W232: 23.02486677
C233: 57.54 | D233: 361.5344826 | E233: 361.534482575113i | F233: 7.95806037346352+0.814010156450984i | G233: -0.0000512556150255507-0.000202609833863076i | H233: 0.0732504414503168-0.0185306722573317i | I233: 0.2089925426 | J233: 0 | K233: 0.162560602770908-0.0238782809690627i | L233: 0.1643049661 | M233: 75.33356519 | N233: 66.72980281 | O233: 78.06777334 | P233: 20.63679926 | Q233: -43.31836661 | R233: 4.758870378 | S233: 3.741310701 | T233: 102.4810269 | U233: 93.87726453 | V233: 105.2152351 | W233: 25.12487053
C234: 58.88 | D234: 369.9539509 | E234: 369.953950886734i | F234: 7.83277359561684+0.770025938546059i | G234: -0.0000559990477062661-0.000195076112338187i | H234: 0.0721691784831366-0.0207170689448278i | I234: 0.2029546327 | J234: 0 | K234: 0.150890030019263-0.0276994540332129i | L234: 0.1534114106 | M234: 75.47884654 | N234: 66.33390115 | O234: 78.07071114 | P234: 19.01811115 | Q234: -44.97810354 | R234: 4.621383988 | S234: 3.493258701 | T234: 102.6263083 | U234: 93.48136287 | V234: 105.2181729 | W234: 27.26332313
C235: 60.26 | D235: 378.6247466 | E235: 378.624746610642i | F235: 7.71590040119304+0.729582993692159i | G235: -0.0000601753198119145-0.000187424393053599i | H235: 0.0709635133285723-0.0227838652160005i | I235: 0.1968475863 | J235: 0 | K235: 0.139828061528363-0.030739082968527i | L235: 0.1431669585 | M235: 75.61592207 | N235: 65.93483038 | O235: 78.073057 | P235: 17.6233584 | Q235: -46.08280775 | R235: 4.48232332 | S235: 3.259987125 | T235: 102.7633838 | U235: 93.0822921 | V235: 105.2205187 | W235: 29.42100466
C236: 61.66 | D236: 387.421206 | E236: 387.421206040693i | F236: 7.60830905971552+0.69282590474318i | G236: -0.0000637542239115568-0.000179824748116224i | H236: 0.0696679207911513-0.0246997383180037i | I236: 0.190791879 | J236: 0 | K236: 0.12952568997033-0.0330592898842345i | L236: 0.1336780498 | M236: 75.74349362 | N236: 65.53866429 | O236: 78.07488528 | P236: 16.43788766 | Q236: -46.75126305 | R236: 4.344431673 | S236: 3.043919672 | T236: 102.8909553 | U236: 92.68612601 | V236: 105.222347 | W236: 31.54279432
C237: 63.1 | D237: 396.4689929 | E237: 396.468992883032i | F237: 7.50771240239567+0.658843896429604i | G237: -0.0000668206731635611-0.000172219993486177i | H237: 0.0682798873717869-0.0264923249929233i | I237: 0.1847287972 | J237: 0 | K237: 0.119818881681342-0.0347899148551663i | L237: 0.1247673939 | M237: 75.86402152 | N237: 65.14000111 | O237: 78.07631343 | P237: 15.41192575 | Q237: -47.09534275 | R237: 4.206372104 | S237: 2.841019338 | T237: 103.0114832 | U237: 92.28746284 | V237: 105.2237752 | W237: 33.6425777
C238: 64.57 | D238: 405.7052753 | E238: 405.705275284586i | F238: 7.4142388158288+0.627578133595688i | G238: -0.0000693826693016345-0.000164708931215924i | H238: 0.0668232822807864-0.028148914948999i | I238: 0.1787260105 | J238: 0 | K238: 0.110762033823679-0.0359988237689i | L238: 0.1164652027 | M238: 75.97714178 | N238: 64.74193132 | O238: 78.07740296 | P238: 14.52627153 | Q238: -47.18616872 | R238: 4.069685485 | S238: 2.651974068 | T238: 103.1246035 | U238: 91.88939304 | V238: 105.2248647 | W238: 35.69373659
C239: 66.07 | D239: 415.1300532 | E239: 415.130053245355i | F239: 7.3272800375622+0.598737388041546i | G239: -0.0000714768729124004-0.000157328285247579i | H239: 0.0653116994318279-0.0296721980579362i | I239: 0.1728037404 | J239: 0 | K239: 0.102328890927947-0.0367632875206443i | L239: 0.1087324295 | M239: 76.08339015 | N239: 64.34465983 | O239: 78.07821709 | P239: 13.75732326 | Q239: -47.08209906 | R239: 3.934832274 | S239: 2.475894745 | T239: 103.2308519 | U239: 91.49212155 | V239: 105.2256788 | W239: 37.68879306
C240: 67.61 | D240: 424.8061586 | E240: 424.806158618412i | F240: 7.24578346720239+0.571902316798793i | G240: -0.0000731494408519386-0.000150062153407282i | H240: 0.0637473269429543-0.0310743329733968i | I240: 0.1669415784 | J240: 0 | K240: 0.0944417288729057-0.0371530113492769i | L240: 0.101486878 | M240: 76.18388284 | N240: 63.94580843 | O240: 78.07881125 | P240: 13.0817225 | Q240: -46.82546565 | R240: 3.801347753 | S240: 2.310909717 | T240: 103.3313446 | U240: 91.09327015 | V240: 105.226273 | W240: 39.63521697
C241: 69.18 | D241: 434.6707596 | E241: 434.670759550684i | F241: 7.16984859346486+0.547047731560577i | G241: -0.00007442195808969-0.000142985375952624i | H241: 0.0621515619699672-0.0323490490500947i | I241: 0.1611938137 | J241: 0 | K241: 0.0871277693834273-0.0372229150026687i | L241: 0.09474594239 | M241: 76.27834482 | N241: 63.5482154 | O241: 78.07922309 | P241: 12.48895131 | Q241: -46.45118294 | R241: 3.670468122 | S241: 2.15741506 | T241: 103.4258065 | U241: 90.69567713 | V241: 105.2266848 | W241: 41.51644895
C242: 70.79 | D242: 444.7866879 | E242: 444.786687895243i | F242: 7.09859466341068+0.523837222199493i | G242: -0.0000753351280769824-0.000136075459317914i | H242: 0.0605245528538389-0.0335080620995249i | I242: 0.1555374944 | J242: 0 | K242: 0.0803142757592056-0.0370248106531878i | L242: 0.0884376588 | M242: 76.36773356 | N242: 63.14957484 | O242: 78.07948999 | P242: 11.96292309 | Q242: -45.98303817 | R242: 3.541670748 | S242: 2.013772116 | T242: 103.5151953 | U242: 90.29703656 | V242: 105.2269517 | W242: 43.34199139
C243: 72.44 | D243: 455.1539437 | E243: 455.153943652089i | F243: 7.03171479047504+0.502132068765568i | G243: -0.0000759176731280919-0.000129353597566534i | H243: 0.0588758000579932-0.0345542283171413i | I243: 0.1499861537 | J243: 0 | K243: 0.0739799509997374-0.0366019788617255i | L243: 0.08253931189 | M243: 76.45231613 | N243: 62.75017756 | O243: 78.07963956 | P243: 11.49418294 | Q243: -45.44106037 | R243: 3.415263794 | S243: 1.879463647 | T243: 103.5997778 | U243: 89.89763929 | V243: 105.2271013 | W243: 45.1095056
C244: 74.13 | D244: 465.7725268 | E244: 465.772526821223i | F244: 6.96892159802446+0.481806880414536i | G244: -0.0000761982007247055-0.000122836802798484i | H244: 0.0572140080260902-0.0354910284907768i | I244: 0.1445511879 | J244: 0 | K244: 0.0681019630158091-0.0359930912485952i | L244: 0.07702843621 | M244: 76.5323484 | N244: 62.35029348 | O244: 78.07969495 | P244: 11.07484138 | Q244: -44.84138324 | R244: 3.291506757 | S244: 1.753978103 | T244: 103.6798101 | U244: 89.4977552 | V244: 105.2271567 | W244: 46.81754725
C245: 75.86 | D245: 476.6424374 | E245: 476.642437402643i | F245: 6.90994632873699+0.462748252242279i | G245: -0.0000762048055260939-0.000116538268946957i | H245: 0.0555470845615623-0.0363224442477518i | I245: 0.1392420214 | J245: 0 | K245: 0.0626565220375781-0.035232461532098i | L245: 0.07188300286 | M245: 76.60807502 | N245: 61.95017284 | O245: 78.07967545 | P245: 10.69829341 | Q245: -44.1970756 | R245: 3.170614237 | S245: 1.636813873 | T245: 103.7555367 | U245: 89.09763457 | V245: 105.2271372 | W245: 48.46538504
C246: 77.62 | D246: 487.7008435 | E246: 487.70084354328i | F246: 6.85483799923669+0.444950470021147i | G246: -0.000075966727533509-0.000110501013850132i | H246: 0.053891437667097-0.0370490370993148i | I246: 0.1340948088 | J246: 0 | K246: 0.0576464185820631-0.0343555473449458i | L246: 0.06710747506 | M246: 76.67933995 | N246: 61.55228259 | O246: 78.07959766 | P246: 10.3607883 | Q246: -43.52264368 | R246: 3.053409494 | S246: 1.528072587 | T246: 103.8268017 | U246: 88.69974432 | V246: 105.2270594 | W246: 50.04415636
C247: 79.43 | D247: 499.0734089 | E247: 499.073408949275i | F247: 6.80273788886145+0.428119003008837i | G247: -0.0000755072866181606-0.000104663154071169i | H247: 0.0522345970936815-0.0376836789330354i | I247: 0.1290570655 | J247: 0 | K247: 0.0529905874318332-0.0333787353227422i | L247: 0.06262700957 | M247: 76.74717332 | N247: 61.1523166 | O247: 78.07947388 | P247: 10.0538301 | Q247: -42.81908467 | R247: 2.938697422 | S247: 1.426050026 | T247: 103.894635 | U247: 88.29977832 | V247: 105.2269356 | W247: 51.57207797
C248: 81.28 | D248: 510.6973018 | E248: 510.697301767557i | F248: 6.75375380567221+0.412275001007161i | G248: -0.0000748521067046412-0.0000990640200971975i | H248: 0.0505917277658858-0.0382267689256775i | I248: 0.1241632714 | J248: 0 | K248: 0.0486948631230023-0.0323298001757257i | L248: 0.05845002715 | M248: 76.81136583 | N248: 60.7527601 | O248: 78.07931529 | P248: 9.775478433 | Q248: -42.09733439 | R248: 2.82726315 | S248: 1.330937934 | T248: 103.9588276 | U248: 87.90022182 | V248: 105.226777 | W248: 53.04056606
C249: 83.18 | D249: 522.6353539 | E249: 522.635353851198i | F249: 6.70744784118245+0.397266013490759i | G249: -0.0000740199792084772-0.0000936778004147359i | H249: 0.0489593303677574-0.0386854580256808i | I249: 0.1193921589 | J249: 0 | K249: 0.0447157728465805-0.0312227876348047i | L249: 0.05453771914 | M249: 76.87242785 | N249: 60.3517096 | O249: 78.07912981 | P249: 9.521076489 | Q249: -41.35940827 | R249: 2.718622404 | S249: 1.241852618 | T249: 104.0198896 | U249: 87.49917132 | V249: 105.2265915 | W249: 54.45780319
C250: 85.11 | D250: 534.7619015 | E250: 534.761901494055i | F250: 6.66411590535252+0.383180043322775i | G250: -0.0000730418295443035-0.0000885607008414506i | H250: 0.0473588887796203-0.0390599876557164i | I250: 0.1147959346 | J250: 0 | K250: 0.041072162236317-0.0300865040661313i | L250: 0.05091286908 | M250: 76.92990888 | N250: 59.95355509 | O250: 78.07892667 | P250: 9.290382179 | Q250: -40.61794151 | R250: 2.613963952 | S250: 1.159312871 | T250: 104.0773706 | U250: 87.10101681 | V250: 105.2263884 | W250: 55.81007321
C251: 87.1 | D251: 547.2654403 | E251: 547.265440255342i | F251: 6.62292953965607+0.36974175736673i | G251: -0.0000719224567118383-0.0000836334214117211i | H251: 0.0457696811889461-0.03936067493665i | I251: 0.1103058881 | J251: 0 | K251: 0.037687706414525-0.028918027491744i | L251: 0.04750384752 | M251: 76.98485522 | N251: 59.55233068 | O251: 78.07870862 | P251: 9.077457171 | Q251: -39.86554491 | R251: 2.511723228 | S251: 1.081687653 | T251: 104.1323169 | U251: 86.6997924 | V251: 105.2261703 | W251: 57.11917994
C252: 89.13 | D252: 560.0203064 | E252: 560.020306428916i | F252: 6.58418269870582+0.357042548435114i | G252: -0.0000706910069230002-0.0000789466634989168i | H252: 0.0442117346842039-0.0395883993587872i | I252: 0.105970723 | J252: 0 | K252: 0.0345800815470716-0.0277417236478143i | L252: 0.04433266596 | M252: 77.03682931 | N252: 59.15234695 | O252: 78.07848257 | P252: 8.882583887 | Q252: -39.11333671 | R252: 2.413009232 | S252: 1.009478177 | T252: 104.184291 | U252: 86.29980868 | V252: 105.2259443 | W252: 58.37230654
C253: 91.2 | D253: 573.0265 | E253: 573.026500014778i | F253: 6.54771393197271+0.345027497316698i | G253: -0.0000693654985160867-0.0000744950686805383i | H253: 0.0426876484743694-0.0397482688364534i | I253: 0.1017894279 | J253: 0 | K253: 0.0317283540034295-0.026568113866949i | L253: 0.04138300523 | M253: 77.08600211 | N253: 58.75372914 | O253: 78.07825241 | P253: 8.703819529 | Q253: -38.3640979 | R253: =MaxV*I253 -> 2.317798939 | S253: =MaxV*L253 -> 0.9423128469 | T253: =20*LOG10(MaxV)+M253 -> 104.2334638 | U253: =20*LOG10(MaxV)+N253 -> 85.90119086 | V253: 105.2257141 | W253: 59.57119261
C254: 93.33 | D254: 586.4096847 | E254: 586.409684719071i | F254: 6.51306054190999+0.333542650965418i | G254: -0.0000679488628429712-0.0000702337269992855i | H254: 0.0411857377062963-0.0398458712367661i | I254: 0.09772320282 | J254: 0 | K254: 0.0290892914862681-0.0253950423398524i | L254: 0.03861469998 | M254: 77.13295958 | N254: 58.35287047 | O254: 78.07801901 | P254: 8.537997541 | Q254: -37.61315537 | R254: 2.225208849 | S254: 0.8792770768 | T254: 104.2804213 | U254: 85.50033219 | V254: 105.2254807 | W254: 60.72816338
C255: 95.5 | D255: 600.0441968 | E255: 600.04419683565i | F255: 6.48044324267636+0.322660848692779i | G255: -0.0000664689555203501-0.0000661996045921709i | H255: 0.0397226885683468-0.039884311029713i | I255: 0.09381103185 | J255: 0 | K255: 0.0266725978919492-0.0242412161668744i | L255: 0.03604253098 | M255: 77.17736822 | N255: 57.95376489 | O255: 78.07778707 | P255: 8.385408395 | Q255: -36.86973307 | R255: 2.136126654 | S255: 0.8207074326 | T255: 104.3248299 | U255: 85.10122662 | V255: 105.2252488 | W255: 61.83323282
C256: 97.72 | D256: 613.9928682 | E256: 613.992868217589i | F256: 6.44959305249559+0.312293630631152i | G256: -0.0000649326407508616-0.0000623679055694878i | H256: 0.0382934492253336-0.0398681783355638i | I256: 0.09003334649 | J256: 0 | K256: 0.0244507400762539-0.0231074111046498i | L256: 0.03364210365 | M256: 77.21956129 | N256: 57.55472391 | O256: 78.07755744 | P256: 8.244110369 | Q256: -36.13209421 | R256: 2.050106766 | S256: 0.7660484368 | T256: 104.367023 | U256: 84.70218563 | V256: 105.2250192 | W256: 62.89300924
C257: 100 | D257: 628.3185307 | E257: 628.318530717959i | F257: 6.42029078759331+0.302368482932181i | G257: -0.0000633452701526167-0.0000587182814722645i | H257: 0.0368937843409368-0.0398010070702243i | I257: 0.08637395342 | J257: 0 | K257: 0.0224013054465511-0.0219940669286192i | L257: 0.03139358956 | M257: 77.25981106 | N257: 57.15421137 | O257: 78.07733071 | P257: 8.112550516 | Q257: -35.39862515 | R257: 1.966780457 | S257: 0.7148485855 | T257: 104.4072728 | U257: 84.3016731 | V257: 105.2247924 | W257: 63.91293448
C258: 102.3 | D258: 642.7698569 | E258: 642.769856924472i | F258: 6.39293039728336+0.293022306832647i | G258: -0.0000617459145215755-0.0000553055914023708i | H258: 0.0355487670728252-0.0396884126427038i | I258: 0.08289310225 | J258: 0 | K258: 0.0205442319753787-0.0209241989551801i | L258: 0.02932383961 | M258: 77.29754832 | N258: 56.75932124 | O258: 78.0771119 | P258: 7.991979102 | Q258: -34.6831765 | R258: 1.887519641 | S258: 0.6677192878 | T258: 104.44501 | U258: 83.90678296 | V258: 105.2245736 | W258: 64.87716033
C259: 104.7 | D259: 657.8495017 | E259: 657.849501661703i | F259: 6.36649859729643+0.283911083143448i | G259: -0.0000600893291897434-0.0000520081100420798i | H259: 0.0342135092735492-0.0395297352626587i | I259: 0.07947056683 | J259: 0 | K259: 0.0188047051135405-0.0198645667626066i | L259: 0.02735357284 | M259: 77.33414858 | N259: 56.3566067 | O259: 78.07689444 | P259: 7.877531181 | Q259: -33.96226608 | R259: 1.809586705 | S259: 0.6228552747 | T259: 104.4816103 | U259: 83.50406842 | V259: 105.2243562 | W259: 65.81972164
C260: 107.2 | D260: 673.5574649 | E260: 673.557464929652i | F260: 6.341034505337+0.275046868548454i | G260: -0.0000583860416794743-0.000048834621002973i | H260: 0.0328929235235628-0.0393263542209037i | I260: 0.07611668721 | J260: 0 | K260: 0.0171819811502587-0.0188212162825246i | L260: 0.02548447878 | M260: 77.36954408 | N260: 55.94680267 | O260: 78.07667966 | P260: 7.769117962 | Q260: -33.23839419 | R260: 1.733217097 | S260: 0.5802950175 | T260: 104.5170058 | U260: 83.09426439 | V260: 105.2241414 | W260: 66.73819501
C261: 109.6 | D261: 688.6371097 | E261: 688.637109666883i | F261: 6.31837824340144+0.267079714787404i | G261: -0.0000567790260332205-0.0000460170429423338i | H261: 0.0316890434472256-0.0391001443772177i | I261: 0.0730850603 | J261: 0 | K261: 0.0157839719310773-0.0178758358842195i | L261: 0.02384699726 | M261: 77.40114946 | N261: 55.56227697 | O261: 78.07648451 | P261: 7.674148019 | Q261: -32.56861314 | R261: 1.664185354 | S261: 0.5430087001 | T261: 104.5486112 | U261: 82.7097387 | V261: 105.2239462 | W261: 67.5641007
C262: 112.2 | D262: 704.9733915 | E262: 704.97339146555i | F262: 6.29561611458535+0.258989940608724i | G262: -0.0000550749235331806-0.0000431952334617382i | H262: 0.0304514902286678-0.0388263556278922i | I262: 0.06999339537 | J262: 0 | K262: 0.0144246710039507-0.0169113500897803i | L262: 0.02222757061 | M262: 77.43301061 | N262: 55.15508896 | O262: 78.07628487 | P262: 7.580117352 | Q262: -31.86975855 | R262: 1.593786514 | S262: 0.5061335016 | T262: 104.5804723 | U262: 82.30255069 | V262: 105.2237466 | W262: 68.40222723
C263: 114.8 | D263: 721.3096733 | E263: 721.309673264216i | F263: 6.27452667086887+0.251409484948943i | G263: -0.0000534135191391396-0.0000405917806373241i | H263: 0.029279244028721-0.0385276880381447i | I263: 0.06708723189 | J263: 0 | K263: 0.0132073095908599-0.0160060014880574i | L263: 0.02075150863 | M263: 77.46262808 | N263: 54.75722312 | O263: 78.07609691 | P263: 7.494210112 | Q263: -31.19757788 | R263: 1.527611639 | S263: 0.4725227919 | T263: 104.6100898 | U263: 81.90468484 | V263: 105.2235586 | W263: 69.1863321
C264: 117.5 | D264: 738.2742736 | E264: 738.274273593601i | F264: 6.25422205928995+0.244024990760258i | G264: -0.0000517367767223124-0.0000380980837207268i | H264: 0.0281268350842278-0.0381959312527395i | I264: 0.06425074357 | J264: 0 | K264: 0.0120748943986625-0.0151250315349943i | L264: 0.01935380205 | M264: 77.49123293 | N264: 54.35347508 | O264: 78.07591342 | P264: 7.412582476 | Q264: -30.52651691 | R264: 1.463023305 | S264: 0.4406962762 | T264: 104.6386946 | U264: 81.5009368 | V264: 105.2233751 | W264: 69.94821457
C265: 120.2 | D265: 755.2388739 | E265: 755.238873922986i | F265: 6.23538563364245+0.23709070616134i | G265: -0.0000501117564720014-0.000035798575880263i | H265: 0.0270364761358564-0.0378463465282172i | I265: 0.06158511323 | J265: 0 | K265: 0.0110603434594071-0.0143008201380852i | L265: 0.01807884548 | M265: 77.51784869 | N265: 53.95889507 | O265: 78.07574113 | P265: 7.337790489 | Q265: -29.88165281 | R265: 1.402325497 | S265: 0.4116648431 | T265: 104.6653104 | U265: 81.10635679 | V265: 105.2232029 | W265: 70.6611766
C266: 123 | D266: 772.8317928 | E266: 772.831792783089i | F266: 6.21725217789544+0.230331019511803i | G266: -0.0000484825453105753-0.0000335999334511463i | H266: 0.0259670968064419-0.0374688524110593i | I266: 0.05898739465 | J266: 0 | K266: 0.010117443673364-0.0135022175118805i | L266: 0.01687224183 | M266: 77.54354385 | N266: 53.55894991 | O266: 78.07557353 | P266: 7.266624507 | Q266: -29.2392185 | R266: 1.343174075 | S266: 0.3841898416 | T266: 104.6910056 | U266: 80.70641163 | V266: 105.2230353 | W266: 71.35319969
C267: 125.9 | D267: 791.0530302 | E267: 791.05303017391i | F267: 6.19982946042216+0.223750474981571i | G267: -0.0000468558179655533-0.0000315036906467328i | H267: 0.0249210899477594-0.0370654367829281i | I267: 0.05646193586 | J267: 0 | K267: 0.0092436869192538-0.0127312707108097i | L267: 0.01573311799 | M267: 77.56829959 | N267: 53.15420245 | O267: 78.075411 | P267: 7.199007342 | Q267: -28.60064535 | R267: 1.285668047 | S267: 0.3582513914 | T267: 104.7157613 | U267: 80.30166417 | V267: 105.2228727 | W267: 72.02338947
C268: 128.8 | D268: 809.2742676 | E268: 809.274267564731i | F268: 6.18365603894792+0.21755895261394i | G268: -0.0000452906568551238-0.000029574085144527i | H268: 0.0239335460942341-0.0366525631539559i | I268: 0.05409131271 | J268: 0 | K268: 0.00846163698596786-0.0120134192379219i | L268: 0.01469426903 | M268: 77.59134005 | N268: 52.75866885 | O268: 78.0752589 | P268: 7.136895049 | Q268: -27.98791272 | R268: 1.231687708 | S268: 0.3345962528 | T268: 104.7388018 | U268: 79.90613057 | V268: 105.2227206 | W268: 72.65020797
C269: 131.8 | D269: 828.1238235 | E269: 828.12382348627i | F269: 6.16811367109468+0.211526458546692i | G269: -0.0000437354997561377-0.0000277365340137684i | H269: 0.0229692845977389-0.0362184092801356i | I269: 0.05178908435 | J269: 0 | K269: 0.007737183941539-0.0113225416608035i | L269: 0.01371364157 | M269: 77.61353616 | N269: 52.35875594 | O269: 78.07511172 | P269: 7.077793449 | Q269: -27.37977487 | R269: 1.179264755 | S269: 0.3122668485 | T269: 104.7609979 | U269: 79.50621766 | V269: 105.2225734 | W269: 73.25685799
C270: 134.9 | D270: 847.6016979 | E270: 847.601697938526i | F270: 6.15320218474286+0.205655441964995i | G270: -0.0000421954440479959-0.0000259908613498403i | H270: 0.0220298982110094-0.0357649300203514i | I270: 0.04955784874 | J270: 0 | K270: 0.00706773450847891-0.0106596517628484i | L270: 0.01278988064 | M270: 77.634882 | N270: 51.95496068 | O270: 78.07496962 | P270: 7.021624681 | Q270: -26.77733045 | R270: 1.128458343 | S270: 0.2912323252 | T270: 104.7823437 | U270: 79.1024224 | V270: 105.2224313 | W270: 73.84286873
C271: 138 | D271: 867.0795724 | E271: 867.079572390783i | F271: 6.13934764771223+0.200120459038239i | G271: -0.0000407215680842121-0.0000243857589903362i | H271: 0.0211443934777654-0.0353088398415408i | I271: 0.04746484329 | J271: 0 | K271: 0.00646875253294982-0.0100445093145443i | L271: 0.01194725603 | M271: 77.65475958 | N271: 51.560337 | O271: 78.07483688 | P271: 6.96989991 | Q271: -26.19979215 | R271: 1.080799506 | S271: 0.2720453186 | T271: 104.8022213 | U271: 78.70779872 | V271: 105.2222986 | W271: 74.39086877
C272: 141.3 | D272: 887.8140839 | E272: 887.814083904476i | F272: 6.12564993239438+0.194565136666365i | G272: -0.0000392229006980636-0.0000228163901226959i | H272: 0.0202567124947884-0.0348226436513276i | I272: 0.04537646524 | J272: 0 | K272: 0.00589885557427784-0.00943784398256357i | L272: 0.01112966289 | M272: 77.67445481 | N272: 51.14987529 | O272: 78.07470502 | P272: 6.919193529 | Q272: -25.61078285 | R272: 1.033246037 | S272: 0.2534282918 | T272: 104.8219165 | U272: 78.29733702 | V272: 105.2221667 | W272: 74.93603227
C273: 144.5 | D273: 907.9202769 | E273: 907.92027688745i | F273: 6.11330482004445+0.189481229820824i | G273: -0.0000378362609191413-0.000021418352670546i | H273: 0.0194461566871152-0.0343523084900926i | I273: 0.04347790786 | J273: 0 | K273: 0.00540465085235621-0.00889305952989049i | L273: 0.01040657286 | M273: 77.69224174 | N273: 50.76090338 | O273: 78.07458567 | P273: 6.873858899 | Q273: -25.06355232 | R273: 0.990014884 | S273: 0.2369631505 | T273: 104.8397035 | U273: 77.9083651 | V273: 105.2220474 | W273: 75.43025209
C274: 147.9 | D274: 929.2831069 | E274: 929.283106931861i | F274: 6.10110413924513+0.18437841340833i | G274: -0.0000364317751760242-0.0000200532539910328i | H274: 0.0186351501728807-0.0338554332266188i | I274: 0.04158614238 | J274: 0 | K274: 0.00493469230150268-0.00835714626977931i | L274: 0.009705312045 | M274: 77.70985478 | N274: 50.3569454 | O274: 78.07446729 | P274: 6.829390716 | Q274: -24.50641313 | R274: 0.9469383868 | S274: 0.220995072 | T274: 104.8573165 | U274: 77.50440712 | V274: 105.221929 | W274: 75.92140077
C275: 151.4 | D275: 951.2742555 | E275: 951.274255506989i | F275: 6.08943800081086+0.179419785650861i | G275: -0.0000350566363300259-0.0000187646500762109i | H275: 0.0178503285310967-0.0333484756254247i | I275: 0.03976279471 | J275: 0 | K275: 0.00450282875938374-0.00784765767680234i | L275: 0.009047717825 | M275: 77.72672813 | N275: 49.95069031 | O275: 78.07435373 | P275: 6.787180086 | Q275: -23.95747682 | R275: 0.9054197991 | S275: 0.206021305 | T275: 104.8741898 | U275: 77.09815203 | V275: 105.2218155 | W275: 76.39356891
C276: 154.9 | D276: 973.2654041 | E276: 973.265404082118i | F276: 6.07859292246285+0.174734371817534i | G276: -0.0000337496200188171-0.0000175825129105693i | H276: 0.0171124515326843-0.032847337565232i | I276: 0.03805498143 | J276: 0 | K276: 0.00411699699638001-0.00737717097555807i | L276: 0.008448213768 | M276: 77.7424421 | N276: 49.5537181 | O276: 78.07424786 | P276: 6.748208802 | Q276: -23.43197798 | R276: 0.8665319903 | S276: 0.1923702815 | T276: 104.8899038 | U276: 76.70117982 | V276: 105.2217096 | W276: 76.83474605
C277: 158.5 | D277: 995.8848712 | E277: 995.884871187964i | F277: 6.06821450753225+0.170176239869871i | G277: -0.0000324726079013473-0.0000164665247001774i | H277: 0.0163987628299496-0.0323389789369705i | I277: 0.03640901948 | J277: 0 | K277: 0.00376212650985899-0.00693028145219745i | L277: 0.007885581582 | M277: 77.75750543 | N277: 49.15465177 | O277: 78.07414629 | P277: 6.711154554 | Q277: -22.91443078 | R277: 0.8290525689 | S277: 0.17955885 | T277: 104.9049672 | U277: 76.30211349 | V277: 105.221608 | W277: 77.25897316
C278: 162.2 | D278: 1019.132657 | E278: 1019.13265682453i | F278: 6.05829221827277+0.165744621242704i | G278: -0.0000312273935293692-0.0000154145315412901i | H278: 0.0157094524833805-0.0318248565332912i | I278: 0.03482467357 | J278: 0 | K278: 0.00343620346898773-0.00650657615798899i | L278: 0.007358194587 | M278: 77.77193018 | N278: 48.75383422 | O278: 78.07404897 | P278: 6.675946494 | Q278: -22.40529629 | R278: 0.7929761772 | S278: 0.1675499701 | T278: 104.9193919 | U278: 75.90129594 | V278: 105.2215107 | W278: 77.66642678
C279: 166 | D279: 1043.008761 | E279: 1043.00876099181i | F279: 6.04881421443619+0.161438297396953i | G279: -0.0000300154342871858-0.0000144241976252418i | H279: 0.0150445644934045-0.0313063609265088i | I279: 0.03330140797 | J279: 0 | K279: 0.00313725646128029-0.00610552449150378i | L279: 0.006864386893 | M279: 77.78573054 | N279: 48.35158868 | O279: 78.07395582 | P279: 6.642511997 | Q279: -21.90496483 | R279: 0.7582906164 | S279: 0.1563057086 | T279: 104.9331923 | U279: 75.4990504 | V279: 105.2214175 | W279: 78.05735388
C280: 169.8 | D280: 1066.884865 | E280: 1066.88486515909i | F280: 6.0399915166152+0.157360082265168i | G280: -0.0000288672625862341-0.0000135159250725643i | H280: 0.0144199358985431-0.0307980455518264i | I280: 0.03187474047 | J280: 0 | K280: 0.00287001565380317-0.00573583174849561i | L280: 0.006413794174 | M280: 77.79859568 | N280: 47.95844595 | O280: 78.07386897 | P280: 6.611560848 | Q280: -21.42608561 | R280: 0.7258046452 | S280: 0.1460454748 | T280: 104.9460574 | U280: 75.10590767 | V280: 105.2213307 | W280: 78.42276907
C281: 173.8 | D281: 1092.017606 | E281: 1092.01760638781i | F281: 6.03134702369246+0.153293675780732i | G281: -0.0000277233474685191-0.000012639480274221i | H281: 0.0138025349950408-0.0302743835436298i | I281: 0.03046867993 | J281: 0 | K281: 0.0026186427433168-0.00537738060426726i | L281: 0.005981096219 | M281: 77.81121876 | N281: 47.55400308 | O281: 78.07378374 | P281: 6.581394241 | Q281: -20.94373412 | R281: 0.6937879054 | S281: 0.1361927142 | T281: 104.9586805 | U281: 74.7014648 | V281: 105.2212455 | W281: 78.78222921
C282: 177.8 | D282: 1117.150348 | E282: 1117.15034761653i | F282: 6.02330116160539+0.149440933666288i | G282: -0.0000266416172544-0.000011836415247936i | H282: 0.0132230554087653-0.0297626919768195i | I282: 0.02915264132 | J282: 0 | K282: 0.00239411544590501-0.00504745009525389i | L282: 0.005586460528 | M282: 77.82298355 | N282: 47.15876168 | O282: 78.07370431 | P282: 6.553457417 | Q282: -20.48228404 | R282: 0.6638210125 | S282: 0.1272066515 | T282: 104.9704453 | U282: 74.3062234 | V282: 105.221166 | W282: 79.11807106
C283: 182 | D283: 1143.539726 | E283: 1143.53972590668i | F283: 6.01543777203643+0.145607046368806i | G283: -0.0000255683800938177-0.0000110640473976447i | H283: 0.0126521777285211-0.0292384583643621i | I283: 0.02785956219 | J283: 0 | K283: 0.00218358718851977-0.00472877347393806i | L283: 0.005208584412 | M283: 77.83449637 | N283: 46.75321375 | O283: 78.07362659 | P283: 6.526284407 | Q283: -20.01883534 | R283: 0.634376919 | S283: 0.1186022131 | T283: 104.9819581 | U283: 73.90067547 | V283: 105.2210883 | W283: 79.44748915
C284: 186.2 | D284: 1169.929104 | E284: 1169.92910419684i | F284: 6.00811854536504+0.141972642322732i | G284: -0.0000245550180073381-0.0000103568168923055i | H284: 0.0121167415091457-0.0287276302208623i | I284: 0.02664981361 | J284: 0 | K284: 0.00199563724159706-0.00443579273517616i | L284: 0.004864033839 | M284: 77.84522568 | N284: 46.35691714 | O284: 78.07355417 | P284: 6.501106772 | Q284: -19.57561374 | R284: 0.6068303061 | S284: 0.1107566149 | T284: 104.9926874 | U284: 73.50437886 | V284: 105.2210159 | W284: 79.75517519
C285: 190.5 | D285: 1196.946801 | E285: 1196.94680101771i | F285: =IMPRODUCT(IMDIV(COMPLEX(0,Sd*Dbl/Sp*D285),COMPLEX(Kbp,Dbl*D285)),IMSUM(IMDIV(IMPRODUCT(COMPLEX(Kbp,0),IMSUB(COMPLEX(1,0),IMDIV(COMPLEX(Kbp,0),COMPLEX(Kbp,Dbl*D285)))),IMSUB(Mp*D285^2,IMPRODUCT(COMPLEX(Kbp,0),IMSUB(COMPLEX(1,0),IMDIV(COMPLEX(Kbp,0),COMPLEX(Kbp,Dbl*D285)))))),COMPLEX(1,0))) -> 6.00113720889981+0.138442081601823i | G285: =IMDIV(COMPLEX(Bl,0),IMPRODUCT(COMPLEX(Re,Le*D285),IMSUM(COMPLEX(Kd-Md*D285^2,0),IMPRODUCT(E285,IMSUM(COMPLEX(Dd,0),IMDIV(COMPLEX(Bl^2,0),COMPLEX(Re,Le*D285)))),IMPRODUCT(COMPLEX(Sd*Kbp/Sp,0),F285)))) -> -0.0000235753768878795-9.69328353039426E-06i | H285: =IMPRODUCT(E285,G285) -> 0.0116023447130631-0.0282184719487342i | I285: 0.02549035388 | J285: =IF(AND(I286>I285,I286>I287),I286,0) -> 0 | K285: =IMPRODUCT(E285,IMPRODUCT(IMDIV(COMPLEX(0,Sd*Kbp*Dbl/Sp*D285),IMPRODUCT(COMPLEX(Kbp,Dbl*D285),IMSUB(COMPLEX(Mp*D285^2,0),IMPRODUCT(COMPLEX(Kbp,0),IMSUB(COMPLEX(1,0),IMDIV(COMPLEX(Kbp,0),COMPLEX(Kbp,Dbl*D285))))))),G285)) -> 0.00182364403408148-0.00415987771681585i | L285: 0.004542054621 | M285: =79.6+20*LOG10(IMABS(IMPRODUCT(COMPLEX(Sd*D285,0),H285))) -> 77.8554716 | N285: =79.6+20*LOG10(IMABS(IMPRODUCT(COMPLEX(Sp*D285,0),K285))) -> 45.96033851 | O285: =79.6+20*LOG10(IMABS(IMSUM(IMPRODUCT(COMPLEX(Sd*D285,0),H285),IMPRODUCT(COMPLEX(Sp*D285,0),K285)))) -> 78.07348503 | P285: =IMABS(IMDIV(COMPLEX(Re,D285*Le),IMSUB(COMPLEX(1,0),IMPRODUCT(COMPLEX(Bl,0),H285)))) -> 6.477194101 | Q285: =180/PI()*IMARGUMENT(IMDIV(COMPLEX(Re,D285*Le),IMSUB(COMPLEX(1,0),IMPRODUCT(COMPLEX(Bl,0),H285)))) -> -19.14146706 | R285: =MaxV*I285 -> 0.5804287967 | S285: =MaxV*L285 -> 0.1034249784 | T285: =20*LOG10(MaxV)+M285 -> 105.0029333 | U285: =20*LOG10(MaxV)+N285 -> 73.10780023 | V285: =20*LOG10(MaxV)+O285 -> 105.2209467 | W285: =IMABS(IMDIV(COMPLEX($E$59^2,0),IMDIV(COMPLEX(Re,D285*Le),IMSUB(COMPLEX(1,0),IMPRODUCT(COMPLEX(Bl,0),H285))))) -> 80.04961739
C286: 195 | D286: =2*PI()*C286 -> 1225.221135 | E286: =COMPLEX(0,2*PI()*C286) -> 1225.22113490002i | F286: 5.99433536860959+0.134937419553116i | G286: -0.0000226085434281652-9.05770724129036E-06i | H286: 0.0110976943457659-0.027700465237493i | I286: 0.02435545722 | J286: 0 | K286: 0.00166298534973755-0.0038946363138944i | L286: =IMABS(K286) -> 0.0042348214 | M286: 77.86546529 | N286: 45.55478606 | O286: 78.07341761 | P286: 6.453992076 | Q286: -18.70704132 | R286: 0.5545866014 | S286: 0.09642911594 | T286: 105.012927 | U286: 72.70224778 | V286: 105.2208793 | W286: 80.33739482
C287: 199.5 | D287: 1253.495469 | E287: 1253.49546878233i | F287: 5.98800217310666+0.131612055398261i | G287: -0.0000216972413117-8.47606269816779E-06i | H287: 0.0106247061852683-0.0271973936692927i | I287: =1000*IMABS(G287) -> 0.02329407477 | J287: 0 | K287: 0.00151959451881503-0.00365107610323967i | L287: 0.003954683832 | M287: 77.8747804 | N287: 45.15848522 | O287: 78.07335479 | P287: 6.432473229 | Q287: -18.29168309 | R287: 0.5304183635 | S287: 0.09005023582 | T287: 105.0222421 | U287: 72.30594694 | V287: 105.2208165 | W287: 80.60615118
C288: 204.2 | D288: 1283.02644 | E288: 1283.02643972607i | F288: 5.98184201510453+0.128315420011445i | G288: -0.0000208004962106921-7.92013840590016E-06i | H288: 0.0101617469810598-0.0266875865977399i | I288: 0.02225734115 | J288: 0 | K288: 0.00138591427546958-0.00341753912605506i | L288: 0.003687862803 | M288: 77.88385026 | N288: 44.75400173 | O288: 78.07329365 | P288: 6.411620151 | Q288: -17.87691151 | R288: 0.5068113923 | S288: 0.08397458033 | T288: 105.031312 | U288: 71.90146345 | V288: 105.2207554 | W288: 80.86831369
C289: 208.9 | D289: 1312.557411 | E289: 1312.55741066982i | F289: 5.97610411928466+0.12518529577593i | G289: -0.0000199559721175531-7.41143904553478E-06i | H289: 0.00972793924294433-0.0261933590900146i | I289: 0.02128779584 | J289: 0 | K289: 0.00126658528117864-0.00320319276136962i | L289: 0.00344451479 | M289: 77.89230663 | N289: 44.35872173 | O289: 78.07323666 | P289: 6.392265187 | Q289: -17.48035516 | R289: 0.4847343346 | S289: 0.07843341777 | T289: 105.0397684 | U289: 71.50618345 | V289: 105.2206984 | W289: 81.11317262
C290: 213.8 | D290: 1343.345019 | E290: 1343.345018675i | F290: 5.97053071852809+0.122085656915917i | G290: -0.0000191270522463423-0.0000069261198193364i | H290: 0.00930416855805174-0.0256942303570604i | I290: 0.02034244979 | J290: 0 | K290: 0.0011555117181211-0.00299811284894151i | L290: 0.003213080762 | M290: 77.90052819 | N290: 43.95597871 | O290: 78.07318128 | P290: 6.373528227 | Q290: -17.0850673 | R290: 0.4632083065 | S290: 0.07316354294 | T290: 105.0479899 | U290: 71.10344043 | V290: 105.220643 | W290: 81.35162992
C291: 218.8 | D291: 1374.760945 | E291: 1374.76094521089i | F291: 5.96523460098366+0.119081883357479i | G291: -0.0000183314548478864-6.47332737178598E-06i | H291: 0.00889927765629602-0.0252013681937711i | I291: 0.01944083856 | J291: 0 | K291: 0.00105441712248207-0.00280625536243065i | L291: 0.002997809972 | M291: 77.90834769 | N291: 43.5544202 | O291: 78.07312864 | P291: 6.35578084 | Q291: -16.69957278 | R291: 0.4426781436 | S291: 0.06826171354 | T291: 105.0558094 | U291: 70.70188193 | V291: 105.2205904 | W291: 81.57878987
C292: 223.9 | D292: 1406.80519 | E292: 1406.80519027751i | F292: 5.96020246083569+0.116171022201548i | G292: -0.000017568314202936-6.05099276288879E-06i | H292: 0.0085125680251636-0.0247151956051165i | I292: 0.01858117804 | J292: 0 | K292: 0.000962415161853708-0.00262684244690976i | L292: 0.002797596144 | M292: 77.91578374 | N292: 43.15417414 | O292: 78.07307859 | P292: 6.338969634 | Q292: -16.32374773 | R292: 0.4231032202 | S292: 0.06370273913 | T292: 105.0632455 | U292: 70.30163586 | V292: 105.2205403 | W292: 81.79514015
C293: 229.1 | D293: 1439.477754 | E293: 1439.47775387484i | F293: 5.95542144916987+0.113350158472525i | G293: -0.0000168367159890297-5.65715064644809E-06i | H293: 0.0081433425058807-0.0242360781145171i | I293: 0.01776171047 | J293: 0 | K293: 0.000878692759766545-0.00245912657399205i | L293: 0.002611398949 | M293: 77.9228544 | N293: 42.75535814 | O293: 78.07303103 | P293: 6.323043768 | Q293: -15.9574531 | R293: 0.4044435116 | S293: 0.05946293084 | T293: 105.0703161 | U293: 69.90281986 | V293: 105.2204928 | W293: 82.00115777
C294: 234.4 | D294: 1472.778636 | E294: 1472.7786360029i | F294: 5.95087918952923+0.110616423713873i | G294: -0.0000161357091873523-5.28993912349507E-06i | H294: 0.00779090932683945-0.0237643277678882i | I294: 0.01698071161 | J294: 0 | K294: 0.000802505282116373-0.00230239208042385i | L294: 0.002438241994 | M294: 77.92957712 | N294: 42.35808014 | O294: 78.07298583 | P294: 6.3079549 | Q294: -15.60053685 | R294: 0.3866597559 | S294: 0.05552005567 | T294: 105.0770388 | U294: 69.50554186 | V294: 105.2204476 | W294: 82.19730765
C295: 239.9 | D295: 1507.336155 | E295: 1507.33615519238i | F295: 5.94648666545099+0.107919168096219i | G295: -0.0000154522699904307-4.94153987523947E-06i | H295: 0.0074485617162733-0.0232917652363704i | I295: 0.01622317676 | J295: 0 | K295: 0.000731959852755249-0.00215336173190238i | L295: 0.002274364081 | M295: 77.93608302 | N295: 41.95519657 | O295: 78.0729421 | P295: 6.293401939 | Q295: -15.24654237 | R295: 0.3694102879 | S295: 0.05178846921 | T295: 105.0835447 | U295: 69.10265829 | V295: 105.2204038 | W295: 82.387382
C296: 245.5 | D296: 1542.521993 | E296: 1542.52199291259i | F296: 5.94232001562164+0.105308122490529i | G296: -0.0000147989103390698-4.61738621407037E-06i | H296: 0.00712241978497495-0.0228276446691567i | I296: 0.01550251601 | J296: 0 | K296: 0.000667906150115774-0.0020144135631542i | L296: 0.002122253667 | M296: 77.94225873 | N296: 41.55436764 | O296: 78.07290062 | P296: 6.279632188 | Q296: -14.90214558 | R296: 0.3530004627 | S296: 0.04832483489 | T296: 105.0897205 | U296: 68.70182936 | V296: 105.2203623 | W296: 82.56803807
C297: 251.2 | D297: 1578.336149 | E297: 1578.33614916351i | F297: 5.93836717712876+0.102780199867772i | G297: -0.0000141744945446324-4.31577882583317E-06i | H297: 0.00681174973260694-0.0223721171359143i | I297: 0.01481695794 | J297: 0 | K297: 0.000609733684864577-0.00188487552384612i | L297: 0.001981042884 | M297: 77.94812146 | N297: 41.15566209 | O297: 78.07286125 | P297: 6.2666003 | Q297: -14.56712749 | R297: 0.3373899439 | S297: 0.04510939089 | T297: 105.0955832 | U297: 68.30312381 | V297: 105.220323 | W297: 82.7397448
C298: 257 | D298: 1614.778624 | E298: 1614.77862394515i | F298: 5.93461668342215+0.100332413016283i | G298: -0.0000135778948815331-4.03512916936127E-06i | H298: 0.00651584032754213-0.0219252944128739i | I298: 0.0141647978 | J298: 0 | K298: 0.000556888812366493-0.00176411484240222i | L298: 0.001849926033 | M298: 77.95368763 | N298: 40.7591416 | O298: 78.07282389 | P298: 6.254263567 | Q298: -14.24126578 | R298: 0.3225399139 | S298: 0.04212379107 | T298: 105.1011493 | U298: 67.90660332 | V298: 105.2202856 | W298: 82.90295157
C299: 263 | D299: 1652.477736 | E299: 1652.47773578823i | F299: 5.93099941455265+0.0979226827085715i | G299: -0.0000129986423470886-0.0000037697235655349i | H299: 0.00622938426212264-0.021479967074038i | I299: 0.01353423506 | J299: 0 | K299: 0.000508101394712215-0.001649711673003i | L299: 0.001726185283 | M299: 77.95905934 | N299: 40.35825502 | O299: 78.07278785 | P299: 6.242390862 | Q299: -13.91908522 | R299: 0.3081816677 | S299: 0.03930614896 | T299: 105.1065211 | U299: 67.50571674 | V299: 105.2202496 | W299: 83.0606287
C300: 269.2 | D300: 1691.433485 | E300: 1691.43348469274i | F300: 5.92751684033041+0.0955538746789264i | G300: -0.0000124373745011806-3.51926916859054E-06i | H300: 0.00595260971340082-0.0210369916929605i | I300: 0.01292569302 | J300: 0 | K300: 0.000463164816521377-0.00154157018603651i | L300: 0.001609646013 | M300: 77.96423407 | N300: 39.95350053 | O300: 78.07275315 | P300: 6.230984123 | Q300: -13.60105768 | R300: 0.2943248446 | S300: 0.03665248833 | T300: 105.1116958 | U300: 67.10096225 | V300: 105.2202149 | W300: 83.21268348
C301: 275.4 | D301: 1730.389234 | E301: 1730.38923359726i | F301: 5.92427042163408+0.0932993104053698i | G301: -0.0000119109849282115-3.29043309900727E-06i | H301: 0.00569373000839425-0.0206106400813164i | I301: 0.01235712393 | J301: 0 | K301: 0.000423082228393881-0.00144260498480251i | L301: 0.001503365463 | M301: 77.96906059 | N301: 39.55796195 | O301: 78.0727208 | P301: 6.220371912 | Q301: -13.29717367 | R301: 0.2813782268 | S301: 0.03423242418 | T301: 105.1165223 | U301: 66.70542367 | V301: 105.2201825 | W301: 83.35464775
C302: 281.8 | D302: 1770.60162 | E302: 1770.60161956321i | F302: 5.9211447921745+0.0910831513206503i | G302: -0.0000114012671853969-3.07448236056411E-06i | H302: 0.00544368344693333-0.0201871021435366i | I302: 0.01180852807 | J302: 0 | K302: 0.000386146702836888-0.00134907141854027i | L302: 0.001403247294 | M302: 77.97370998 | N302: 39.1588959 | O302: 78.07268964 | P302: 6.210173669 | Q302: -12.99734942 | R302: 0.2688864098 | S302: 0.0319526807 | T302: 105.1211717 | U302: 66.30635762 | V302: 105.2201514 | W302: 83.49153135
C303: 288.4 | D303: 1812.070643 | E303: 1812.07064259059i | F303: 5.91813999561651+0.0889074464157816i | G303: -0.0000109085485738838-2.87105918155307E-06i | H303: 0.00520256205603249-0.0197670606240083i | I303: 0.01128004489 | J303: 0 | K303: 0.000352177835627124-0.00126083645060158i | L303: 0.00130909808 | M303: 77.97818191 | N303: 38.75674069 | O303: 78.07265969 | P303: 6.200387319 | Q303: -12.7019391 | R303: 0.2568525692 | S303: 0.02980885346 | T303: 105.1256436 | U303: 65.90420241 | V303: 105.2201214 | W303: 83.62330979
C304: 295.1 | D304: 1854.167984 | E304: 1854.1679841487i | F304: 5.91529629869712+0.0868044981104394i | G304: -0.0000104397938252617-0.000002682441332758i | H304: 0.00497369683855705-0.0193571314719135i | I304: 0.0107789047 | J304: 0 | K304: 0.00032142593024841-0.00117891087011544i | L304: 0.001221943316 | M304: 77.98241613 | N304: 38.35779725 | O304: 78.07263134 | P304: 6.191141544 | Q304: -12.41542701 | R304: 0.2454413429 | S304: 0.02782429354 | T304: 105.1298778 | U304: 65.50525897 | V304: 105.2200931 | W304: 83.74819181
C305: 302 | D305: 1897.521963 | E305: 1897.52196276823i | F305: 5.91256581189219+0.0847420874502366i | G305: -9.98744733064697E-06-2.50501805260873E-06i | H305: 0.00475332677195597-0.0189514006618936i | I305: 0.01029680628 | J305: 0 | K305: 0.000293181272259243-0.00110174704099814i | L305: 0.001140088506 | M305: 77.98648367 | N305: 37.95630206 | O305: 78.07260411 | P305: 6.182278359 | Q305: -12.13351794 | R305: 0.2344637077 | S305: 0.02596041634 | T305: 105.1339454 | U305: 65.10376378 | V305: 105.2200658 | W305: 83.86825688
C306: 309 | D306: 1941.50426 | E306: 1941.50425991849i | F306: 5.90998282131867+0.0827492395084243i | G306: -9.55749656332591E-06-2.34060961966635E-06i | H306: 0.00454430354738842-0.0185559202918536i | I306: 0.009839928554 | J306: 0 | K306: 0.000267624132269325-0.00103015489203479i | L306: 0.001064350402 | M306: 77.99033318 | N306: 37.55825401 | O306: 78.07257836 | P306: 6.173907002 | Q306: -11.86026698 | R306: 0.2240603609 | S306: 0.02423581979 | T306: 105.1377949 | U306: 64.70571573 | V306: 105.2200401 | W306: 83.98197599
... 51 more rows
